,Portfolio,Expense Area,Cost Centre,Expense Type,Account Code,Amount,Supplier Name,SupplierId,Pay Date,Transaction No.
INSERTED DETAIL,Resources & Corporate Governance ,Toilet Cleaning,WBC01,Materials,0303,841.58,Arco Limited,100015,30/01/2014,10192036
INSERTED DETAIL,Resources & Corporate Governance ,Electoral Registration,ERG00,Personal Protective Clothing,0340,61.80,Arco Limited,100015,09/01/2014,10195290
INSERTED DETAIL,Resources & Corporate Governance ,Toilet Cleaning,WBC01,Personal Protective Clothing,0340,18.49,Arco Limited,100015,09/01/2014,10195290
INSERTED DETAIL,Resources & Corporate Governance ,Grounds Maintenance,WGM00,Personal Protective Clothing,0340,194.20,Arco Limited,100015,09/01/2014,10195290
INSERTED DETAIL,Resources & Corporate Governance ,Highways,WHG00,Personal Protective Clothing,0340,27.74,Arco Limited,100015,09/01/2014,10195290
INSERTED DETAIL,Resources & Corporate Governance,Housing Maintenance,WHM00,Personal Protective Clothing,0340,21.58,Arco Limited,100015,09/01/2014,10195290
INSERTED DETAIL,Resources & Corporate Governance ,Street Cleansing,WSC00,Personal Protective Clothing,0340,221.94,Arco Limited,100015,09/01/2014,10195290
INSERTED DETAIL,Resources & Corporate Governance ,Garage Internal,WVR01,Personal Protective Clothing,0340,36.99,Arco Limited,100015,09/01/2014,10195290
INSERTED DETAIL,Resources & Corporate Governance ,Domestic Waste Collection,WWC00,Personal Protective Clothing,0340,388.39,Arco Limited,100015,09/01/2014,10195290
INSERTED DETAIL,Resources & Corporate Governance ,Trade Waste Collection,WWC01,Personal Protective Clothing,0340,36.99,Arco Limited,100015,09/01/2014,10195290
INSERTED DETAIL,Resources & Corporate Governance,Housing Maintenance,WHM00,Materials,0303,1121.95,Arco Limited,100015,09/01/2014,10195605
INSERTED DETAIL,Resources & Corporate Governance ,Grounds Maintenance,WGM00,Materials,0303,30.92,Arco Limited,100015,09/01/2014,10195653
INSERTED DETAIL,Resources & Corporate Governance,Housing Maintenance,WHM00,Materials,0303,190.40,Arco Limited,100015,09/01/2014,10195653
INSERTED DETAIL,Resources & Corporate Governance ,Toilet Cleaning,WBC01,Personal Protective Clothing,0340,3.54,Arco Limited,100015,09/01/2014,10195653
INSERTED DETAIL,Resources & Corporate Governance ,Grounds Maintenance,WGM00,Personal Protective Clothing,0340,37.33,Arco Limited,100015,09/01/2014,10195653
INSERTED DETAIL,Resources & Corporate Governance ,Highways,WHG00,Personal Protective Clothing,0340,5.34,Arco Limited,100015,09/01/2014,10195653
INSERTED DETAIL,Resources & Corporate Governance,Housing Maintenance,WHM00,Personal Protective Clothing,0340,186.94,Arco Limited,100015,09/01/2014,10195653
INSERTED DETAIL,Resources & Corporate Governance ,Street Cleansing,WSC00,Personal Protective Clothing,0340,42.66,Arco Limited,100015,09/01/2014,10195653
INSERTED DETAIL,Resources & Corporate Governance ,Garage Internal,WVR01,Personal Protective Clothing,0340,7.11,Arco Limited,100015,09/01/2014,10195653
INSERTED DETAIL,Resources & Corporate Governance ,Domestic Waste Collection,WWC00,Personal Protective Clothing,0340,74.66,Arco Limited,100015,09/01/2014,10195653
INSERTED DETAIL,Resources & Corporate Governance ,Trade Waste Collection,WWC01,Personal Protective Clothing,0340,7.11,Arco Limited,100015,09/01/2014,10195653
INSERTED DETAIL,Resources & Corporate Governance ,Garage Internal,WVR01,Materials,0303,128.00,Arco Limited,100015,09/01/2014,10195943
INSERTED DETAIL,Resources & Corporate Governance ,Domestic Waste Collection,WWC00,Materials,0303,289.50,Arco Limited,100015,09/01/2014,10195943
INSERTED DETAIL,Resources & Corporate Governance ,Domestic Waste Collection,WWC00,Tools,0304,20.60,Arco Limited,100015,09/01/2014,10195943
INSERTED DETAIL,Sustainable Environment,Regulatory Services,REG00,Personal Protective Clothing,0340,34.85,Arco Limited,100015,09/01/2014,10195943
INSERTED DETAIL,Resources & Corporate Governance ,General Administration,WAD00,Personal Protective Clothing,0340,83.00,Arco Limited,100015,09/01/2014,10195943
INSERTED DETAIL,Resources & Corporate Governance ,Domestic Waste Collection,WWC00,Tools,0304,175.78,Arco Limited,100015,09/01/2014,10195945
INSERTED DETAIL,Resources & Corporate Governance ,WSU Depot,WDP00,Messing Facilities,0332,390.80,Arco Limited,100015,09/01/2014,10195945
INSERTED DETAIL,Resources & Corporate Governance ,Safety and Resilience,EPL00,New Equipment,0300,1035.60,Arco Limited,100015,23/01/2014,10196153
INSERTED DETAIL,Resources & Corporate Governance,Housing Maintenance,WHM00,Personal Protective Clothing,0340,21.58,Arco Limited,100015,23/01/2014,10196153
INSERTED DETAIL,Resources & Corporate Governance ,Toilet Cleaning,WBC01,Materials,0303,525.00,Arco Limited,100015,30/01/2014,10197171
INSERTED DETAIL,Sustainable Environment,Regulatory Services,REG00,Personal Protective Clothing,0340,46.24,Arco Limited,100015,30/01/2014,10197171
INSERTED DETAIL,Resources & Corporate Governance ,General Administration,WAD00,Personal Protective Clothing,0340,83.52,Arco Limited,100015,30/01/2014,10197171
INSERTED DETAIL,Resources & Corporate Governance ,TREE WORKS,WGM01,Personal Protective Clothing,0340,57.94,Arco Limited,100015,30/01/2014,10197171
INSERTED DETAIL,Sustainable Inclusive Communities,Housing Options Team,HOT00,Rents,0140,896.00,Alma Lodge Hotel,100026,16/01/2014,10195677
INSERTED DETAIL,Sustainable Inclusive Communities,Housing Options Team,HOT00,Rents,0140,1120.00,Alma Lodge Hotel,100026,30/01/2014,10196555
INSERTED DETAIL,Housing Revenue Account ,Unplanned Maintenance and Repair,UMR00,R&M External Contractors,0100,1298.79,AWM Electrical Contractors Ltd,100051,16/01/2014,10196043
INSERTED DETAIL,Housing Revenue Account ,Unplanned Maintenance and Repair,UMR00,R&M External Contractors,0100,3792.71,AWM Electrical Contractors Ltd,100051,16/01/2014,10196448
INSERTED DETAIL,Capital Program ,Rewiring,HCE20,Capital Contract Payments,5000,850.90,AWM Electrical Contractors Ltd,100051,16/01/2014,10196448
INSERTED DETAIL,Housing Revenue Account ,Unplanned Maintenance and Repair,UMR00,R&M External Contractors,0100,4004.08,AWM Electrical Contractors Ltd,100051,16/01/2014,10196449
INSERTED DETAIL,Housing Revenue Account ,Unplanned Maintenance and Repair,UMR00,R&M External Contractors,0100,1055.15,AWM Electrical Contractors Ltd,100051,16/01/2014,10196497
INSERTED DETAIL,Housing Revenue Account ,Unplanned Maintenance and Repair,UMR00,R&M External Contractors,0100,844.23,AWM Electrical Contractors Ltd,100051,16/01/2014,10196498
INSERTED DETAIL,Housing Revenue Account ,Unplanned Maintenance and Repair,UMR00,R&M External Contractors,0100,85.71,AWM Electrical Contractors Ltd,100051,23/01/2014,10196694
INSERTED DETAIL,Housing Revenue Account ,Repairs and Maintenance - Void works,UMR09,R&M External Contractors,0100,2286.83,AWM Electrical Contractors Ltd,100051,23/01/2014,10196694
INSERTED DETAIL,Housing Revenue Account ,Repairs and Maintenance - Void works,UMR09,R&M External Contractors,0100,513.36,AWM Electrical Contractors Ltd,100051,23/01/2014,10196695
INSERTED DETAIL,Housing Revenue Account ,Unplanned Maintenance and Repair,UMR00,R&M External Contractors,0100,342.83,AWM Electrical Contractors Ltd,100051,23/01/2014,10196696
INSERTED DETAIL,Housing Revenue Account ,Repairs and Maintenance - Void works,UMR09,R&M External Contractors,0100,633.38,AWM Electrical Contractors Ltd,100051,23/01/2014,10196696
INSERTED DETAIL,Housing Revenue Account ,Unplanned Maintenance and Repair,UMR00,R&M External Contractors,0100,2448.47,AWM Electrical Contractors Ltd,100051,23/01/2014,10196795
INSERTED DETAIL,Housing Revenue Account ,Unplanned Maintenance and Repair,UMR00,R&M External Contractors,0100,4156.85,AWM Electrical Contractors Ltd,100051,23/01/2014,10196799
INSERTED DETAIL,Capital Program ,Fire Risk Prevention Works,HCE18,Capital Contract Payments,5000,4609.20,AWM Electrical Contractors Ltd,100051,23/01/2014,10196799
INSERTED DETAIL,Housing Revenue Account ,Unplanned Maintenance and Repair,UMR00,R&M External Contractors,0100,751.52,AWM Electrical Contractors Ltd,100051,23/01/2014,10196800
INSERTED DETAIL,Housing Revenue Account ,Unplanned Maintenance and Repair,UMR00,R&M External Contractors,0100,1855.46,AWM Electrical Contractors Ltd,100051,30/01/2014,10197045
INSERTED DETAIL,Resources & Corporate Governance ,Human Resources Centralised Services,RES31,Training fees,0011,1386.00,APSE,100052,30/01/2014,10197006
INSERTED DETAIL,Capital Program ,Kitchen Modifications,HIK10,Capital Contract Payments,5000,11489.30,A C E Carpentry & Joinery Contractors Ltd,100085,09/01/2014,10195866
INSERTED DETAIL,Capital Program ,Kitchen Modifications,HIK10,Capital Contract Payments,5000,11489.30,A C E Carpentry & Joinery Contractors Ltd,100085,30/01/2014,10197067
INSERTED DETAIL,Resources & Corporate Governance ,Grounds Maintenance,WGM00,Materials,0303,1976.25,Banks Amenity Products Ltd,100133,16/01/2014,10196480
INSERTED DETAIL,Economy Development & Culture,Decrim. of Car Parking on street parking,DPE02,Maintenance of Equipment,0301,510.00,Cale Briparc Ltd,100158,09/01/2014,10196122
INSERTED DETAIL,Resources & Corporate Governance ,Council Tax and NNDR Collection,CTX01,External Contractor & Operator,0742,42.50,Bristow & Sutor,100159,02/01/2014,10196028
INSERTED DETAIL,Resources & Corporate Governance ,WSU Depot,WDP00,Telephone Expenses,0371,455.40,British Telecommunications Plc,100161,16/01/2014,10196204
INSERTED DETAIL,Housing Revenue Account ,Control Centre (HRA),CCE00,New Equipment,0300,59.35,British Telecommunications Plc,100161,16/01/2014,10196475
INSERTED DETAIL,Economy Development & Culture,Art Gallery and Museum,AGM00,Telephone Expenses,0371,210.56,British Telecommunications Plc,100161,16/01/2014,10196475
INSERTED DETAIL,Economy Development & Culture,The Benn Hall,BHL00,Telephone Expenses,0371,75.85,British Telecommunications Plc,100161,16/01/2014,10196475
INSERTED DETAIL,Resources & Corporate Governance ,Customer and Information Strategy,CIS10,Telephone Expenses,0371,1091.02,British Telecommunications Plc,100161,16/01/2014,10196475
INSERTED DETAIL,Resources & Corporate Governance ,Civic Responsibilities,CIV00,Telephone Expenses,0371,43.17,British Telecommunications Plc,100161,16/01/2014,10196475
INSERTED DETAIL,Economy Development & Culture,Car Parks General,CPK01,Telephone Expenses,0371,19.44,British Telecommunications Plc,100161,16/01/2014,10196475
INSERTED DETAIL,Resources & Corporate Governance ,Council Tax and NNDR Collection,CTX01,Telephone Expenses,0371,270.69,British Telecommunications Plc,100161,16/01/2014,10196475
INSERTED DETAIL,Economy Development & Culture,Decrim. of Car Parking on street parking,DPE02,Telephone Expenses,0371,77.77,British Telecommunications Plc,100161,16/01/2014,10196475
INSERTED DETAIL,Sustainable Inclusive Communities,Housing Benefit Administration,HBA00,Telephone Expenses,0371,37.89,British Telecommunications Plc,100161,16/01/2014,10196475
INSERTED DETAIL,Resources & Corporate Governance ,Town Hall,OFF00,Telephone Expenses,0371,37.89,British Telecommunications Plc,100161,16/01/2014,10196475
INSERTED DETAIL,Sustainable Environment ,Parks,PKS00,Telephone Expenses,0371,45.49,British Telecommunications Plc,100161,16/01/2014,10196475
INSERTED DETAIL,Resources & Corporate Governance ,Central Telephone Service,TEL00,Telephone Expenses,0371,37.89,British Telecommunications Plc,100161,16/01/2014,10196475
INSERTED DETAIL,Economy Development & Culture,Visitor Centre,VSC00,Telephone Expenses,0371,75.98,British Telecommunications Plc,100161,16/01/2014,10196475
INSERTED DETAIL,Resources & Corporate Governance ,Town Hall,OFF00,Software Maintenance,0374,37.89,British Telecommunications Plc,100161,16/01/2014,10196475
INSERTED DETAIL,Resources & Corporate Governance ,TREE WORKS,WGM01,Materials,0303,1177.00,Burrow Hill Ltd,100167,09/01/2014,10195780
INSERTED DETAIL,Resources & Corporate Governance ,Grounds Maintenance,WGM00,External Contractor & Operator,0742,473.44,Barcham Trees,100195,30/01/2014,10197052
INSERTED DETAIL,Resources & Corporate Governance ,WSU Depot,WDP00,Telephone Expenses,0371,7797.00,Bt Redcare,100221,23/01/2014,10196065
INSERTED DETAIL,Housing Revenue Account ,Unplanned Maintenance and Repair,UMR00,R&M External Contractors,0100,741.25,Barron McCann Ltd,100248,09/01/2014,10196045
INSERTED DETAIL,Housing Revenue Account ,Unplanned Maintenance and Repair,UMR00,R&M External Contractors,0100,585.00,Barron McCann Ltd,100248,30/01/2014,10196591
INSERTED DETAIL,Housing Revenue Account ,Unplanned Maintenance and Repair,UMR00,R&M External Contractors,0100,658.48,Barron McCann Ltd,100248,30/01/2014,10196701
INSERTED DETAIL,Housing Revenue Account ,Unplanned Maintenance and Repair,UMR00,R&M External Contractors,0100,495.48,Barron McCann Ltd,100248,23/01/2014,10196702
INSERTED DETAIL,Resources & Corporate Governance ,Street Cleansing,WSC00,Vehicle Repair and Maintenance,0200,725.00,Carwood Motor Units Ltd,100300,16/01/2014,10196223
INSERTED DETAIL,Resources & Corporate Governance,Housing Maintenance,WHM00,Materials,0303,425.00,Charles Watts Engineering Ltd,100302,09/01/2014,10195238
INSERTED DETAIL,Resources & Corporate Governance ,Financial Services,RES10,Training fees,0011,485.00,Cipfa,100349,16/01/2014,10196667
INSERTED DETAIL,Resources & Corporate Governance ,Maintenance of Customer Services Systems,CIS21,Other Miscellaneous Expenses,0444,2090.00,Capita Business Services Ltd,100403,16/01/2014,10196502
INSERTED DETAIL,Economy Development & Culture,Economic Development General,ECD00,Development Activities,0450,1000.00,Coventry & Warwickshire Chamber Of Commerce,100412,23/01/2014,10196885
INSERTED DETAIL,Sustainable Environment ,Clinical Waste,REF04,External Contractor & Operator,0742,535.28,OCS Group UK Ltd t/a Cannon,100436,16/01/2014,10196183
INSERTED DETAIL,Sustainable Environment,Regulatory Services,REG00,Other Miscellaneous Expenses,0444,1525.00,Heart Of England Co-operative Society Ltd,100479,23/01/2014,10196876
INSERTED DETAIL,Resources & Corporate Governance ,Domestic Waste Collection,WWC00,Vehicle Repair and Maintenance,0200,489.46,Dennis Eagle Ltd,100559,02/01/2014,10195107
INSERTED DETAIL,Resources & Corporate Governance ,Trade Waste Collection,WWC01,Vehicle Repair and Maintenance,0200,19.01,Dennis Eagle Ltd,100559,02/01/2014,10195107
INSERTED DETAIL,Resources & Corporate Governance ,Domestic Waste Collection,WWC00,Vehicle Repair and Maintenance,0200,508.93,Dennis Eagle Ltd,100559,23/01/2014,10196725
INSERTED DETAIL,Resources & Corporate Governance ,Domestic Waste Collection,WWC00,Vehicle Repair and Maintenance,0200,1430.81,Dennis Eagle Ltd,100559,30/01/2014,10196926
INSERTED DETAIL,Capital Program ,Capital Partnership Fund,CGR01,Capital Grants,5014,1677.65,Dunchurch Parish Council,100564,02/01/2014,10195918
INSERTED DETAIL,Capital Program ,Bathroom Modifications,HIS01,Capital Contract Payments,5000,2495.00,JADA Building & Maintenance Services Ltd,100583,23/01/2014,10196518
INSERTED DETAIL,Housing Revenue Account ,Repairs and Maintenance - Void works,UMR09,R&M External Contractors,0100,558.40,Dulux Decorator Centres,100597,16/01/2014,10196415
INSERTED DETAIL,Housing Revenue Account ,Lesley Souter House AP,AGP16,Gas,0131,1278.96,ESPO,100641,02/01/2014,10195524
INSERTED DETAIL,Housing Revenue Account ,Tanser Court AP,AGP17,Gas,0131,1660.10,ESPO,100641,02/01/2014,10195525
INSERTED DETAIL,Housing Revenue Account ,Albert Square AP,AGP20,Gas,0131,1781.57,ESPO,100641,02/01/2014,10195527
INSERTED DETAIL,Resources & Corporate Governance ,WSU Depot,WDP00,Gas,0131,1046.46,ESPO,100641,02/01/2014,10195532
INSERTED DETAIL,Resources & Corporate Governance,Housing Maintenance,WHM00,Agency Staff,0003,440.67,First Personnel Group Plc,100807,02/01/2014,10195778
INSERTED DETAIL,Resources & Corporate Governance,Housing Maintenance,WHM00,Agency Staff,0003,440.67,First Personnel Group Plc,100807,16/01/2014,10195896
INSERTED DETAIL,Resources & Corporate Governance,Housing Maintenance,WHM00,Agency Staff,0003,440.67,First Personnel Group Plc,100807,23/01/2014,10196717
INSERTED DETAIL,Resources & Corporate Governance,Housing Maintenance,WHM00,Agency Staff,0003,470.45,First Personnel Group Plc,100807,30/01/2014,10197054
INSERTED DETAIL,Capital Program ,Fire Risk Prevention Works,HCE18,Capital Contract Payments,5000,16755.11,Nationwide Windows Ltd,100808,16/01/2014,10193036
INSERTED DETAIL,Capital Program ,External Door Replacement,HDR00,Capital Contract Payments,5000,498.68,Nationwide Windows Ltd,100808,30/01/2014,10197018
INSERTED DETAIL,Resources & Corporate Governance ,Domestic Waste Collection,WWC00,External Contractor & Operator,0742,1260.00,Container Services UK Limited,100811,23/01/2014,10196842
INSERTED DETAIL,Resources & Corporate Governance ,Domestic Waste Collection,WWC00,Vehicle Repair and Maintenance,0200,885.33,Ford & Slater,100817,09/01/2014,10195899
INSERTED DETAIL,Resources & Corporate Governance ,Domestic Waste Collection,WWC00,Vehicle Repair and Maintenance,0200,459.81,Ford & Slater,100817,09/01/2014,10196141
INSERTED DETAIL,Resources & Corporate Governance ,Garage Internal,WVR01,Materials,0303,1283.25,Fuchs Lubricants (Uk) Plc,100832,23/01/2014,10196718
INSERTED DETAIL,,Balance Sheet,BS,Car Leasing Scheme,9244,2539.04,Lex Autolease Ltd,100844,16/01/2014,10196333
INSERTED DETAIL,Resources & Corporate Governance ,Town Hall,OFF00,Materials,0303,1002.88,Greenham,100890,30/01/2014,10196963
INSERTED DETAIL,Resources & Corporate Governance ,Human Resources Centralised Services,RES31,Recruitment Expenses,0012,1406.70,TMP (UK) LTD,100972,16/01/2014,10196478
INSERTED DETAIL,Resources & Corporate Governance ,Council Tax and NNDR Collection,CTX01,Subscriptions,0421,497.50,Institute Of Revenues Rating & Valuation,101124,09/01/2014,10196056
INSERTED DETAIL,Sustainable Inclusive Communities,Housing Benefit Administration,HBA00,Subscriptions,0421,497.50,Institute Of Revenues Rating & Valuation,101124,09/01/2014,10196056
INSERTED DETAIL,Resources & Corporate Governance ,Grounds Maintenance,WGM00,Materials,0303,445.00,James Coles & Sons (Nurseries) Ltd,101165,02/01/2014,10195648
INSERTED DETAIL,Resources & Corporate Governance ,Grounds Maintenance,WGM00,Materials,0303,2778.50,James Coles & Sons (Nurseries) Ltd,101165,23/01/2014,10196612
INSERTED DETAIL,Resources & Corporate Governance ,Grounds Maintenance,WGM00,Materials,0303,564.45,James Coles & Sons (Nurseries) Ltd,101165,23/01/2014,10196613
INSERTED DETAIL,Resources & Corporate Governance ,Grounds Maintenance,WGM00,Materials,0303,2230.90,James Coles & Sons (Nurseries) Ltd,101165,30/01/2014,10196986
INSERTED DETAIL,Resources & Corporate Governance ,Grounds Maintenance,WGM00,Materials,0303,650.25,James Coles & Sons (Nurseries) Ltd,101165,30/01/2014,10196988
INSERTED DETAIL,Resources & Corporate Governance,Housing Maintenance,WHM00,External Contractor & Operator,0742,524.38,Clews Recycling Limited,101213,16/01/2014,10195868
INSERTED DETAIL,Sustainable Environment ,Parks,PKS00,External Contractor & Operator,0742,1450.00,Lilbourne Turf Supplies,101225,09/01/2014,10195124
INSERTED DETAIL,Economy Development & Culture,Planning General/Income,PLN00,Consultancy Costs,0740,2048.25,L G S Ltd,101252,09/01/2014,10196053
INSERTED DETAIL,Resources & Corporate Governance ,Highways,WHG00,Contract Hire,0220,475.00,M & J Engineers Ltd,101278,09/01/2014,10190939
INSERTED DETAIL,Resources & Corporate Governance ,Highways,WHG00,Contract Hire,0220,-1045.00,M & J Engineers Ltd,101278,09/01/2014,10192449
INSERTED DETAIL,Resources & Corporate Governance,Housing Maintenance,WHM00,Materials,0303,645.03,Melbros Ltd,101291,09/01/2014,10193748
INSERTED DETAIL,Resources & Corporate Governance,Housing Maintenance,WHM00,Materials,0303,418.00,Melbros Ltd,101291,09/01/2014,10193848
INSERTED DETAIL,Resources & Corporate Governance,Housing Maintenance,WHM00,Materials,0303,624.00,Melbros Ltd,101291,30/01/2014,10195213
INSERTED DETAIL,Resources & Corporate Governance,Housing Maintenance,WHM00,Materials,0303,704.00,Melbros Ltd,101291,09/01/2014,10195215
INSERTED DETAIL,Resources & Corporate Governance,Housing Maintenance,WHM00,Materials,0303,1311.00,Melbros Ltd,101291,09/01/2014,10195217
INSERTED DETAIL,Resources & Corporate Governance,Housing Maintenance,WHM00,Materials,0303,435.00,Melbros Ltd,101291,30/01/2014,10195819
INSERTED DETAIL,Economy Development & Culture,Visitor Centre,VSC00,Events Tickets - Zero Rated,1405,851.12,National Express Ltd,101392,09/01/2014,10196070
INSERTED DETAIL,Capital Program ,Disabled Facilities Grant,REN01,Capital Grants,5014,2176.47,Heart of England Housing Association,101400,02/01/2014,10195879
INSERTED DETAIL,Capital Program ,Disabled Facilities Grant,REN01,Capital Grants,5014,956.82,Orbit Group Limited,101414,02/01/2014,10195612
INSERTED DETAIL,Resources & Corporate Governance ,Grounds Maintenance,WGM00,Vehicle Running Costs,0201,440.00,Post Office Ltd,101429,16/01/2014,10196332
INSERTED DETAIL,Resources & Corporate Governance,Housing Maintenance,WHM00,Vehicle Running Costs,0201,660.00,Post Office Ltd,101429,16/01/2014,10196332
INSERTED DETAIL,Resources & Corporate Governance ,Domestic Waste Collection,WWC00,Vehicle Running Costs,0201,815.00,Post Office Ltd,101429,16/01/2014,10196332
INSERTED DETAIL,Sustainable Inclusive Communities,Sewage Disposal Plant,SDP00,R&M External Contractors,0100,1290.00,PJT Pumping Services,101438,16/01/2014,10196114
INSERTED DETAIL,Sustainable Inclusive Communities,Sewage Disposal Plant,SDP00,R&M External Contractors,0100,520.28,PJT Pumping Services,101438,16/01/2014,10196336
INSERTED DETAIL,Resources & Corporate Governance ,Grounds Maintenance,WGM00,External Contractor & Operator,0742,3250.00,Post To Post Fencing,101490,30/01/2014,10196960
INSERTED DETAIL,Resources & Corporate Governance,Central Business Support Services,CSS15,Photocopying,0354,1549.30,Xerox (UK) Ltd,101502,16/01/2014,10196341
INSERTED DETAIL,Resources & Corporate Governance,Central Business Support Services,CSS15,Photocopying,0354,571.31,Xerox (UK) Ltd,101502,16/01/2014,10196343
INSERTED DETAIL,Resources & Corporate Governance,Central Business Support Services,CSS15,Photocopying,0354,453.96,Xerox (UK) Ltd,101502,16/01/2014,10196357
INSERTED DETAIL,Resources & Corporate Governance,Central Business Support Services,CSS15,Photocopying,0354,491.08,Xerox (UK) Ltd,101502,23/01/2014,10196384
INSERTED DETAIL,Capital Program ,Disabled Facilities Grant,REN01,Capital Grants,5014,4320.00,Reeds Plumbing & Heating Contractors Ltd,101504,16/01/2014,10196669
INSERTED DETAIL,Capital Program ,Bathroom Modifications,HIS01,Capital Contract Payments,5000,41700.00,Reeds Plumbing & Heating Contractors Ltd,101504,30/01/2014,10197068
INSERTED DETAIL,Resources & Corporate Governance ,Garage Internal,WVR01,Materials,0303,1001.40,Rencar Services,101505,09/01/2014,10195947
INSERTED DETAIL,Housing Revenue Account ,Estate Management,MAN22,Council Tax,0142,671.68,Rugby Borough Council,101516,02/01/2014,10193123
INSERTED DETAIL,Resources & Corporate Governance ,Borough Elections,ELC00,Postage & Distribution,0370,322.42,Royal Mail,101554,09/01/2014,10194732
INSERTED DETAIL,Resources & Corporate Governance ,Electoral Registration,ERG00,Postage & Distribution,0370,608.19,Royal Mail,101554,09/01/2014,10194732
INSERTED DETAIL,Economy Development & Culture,Art Gallery and Museum,AGM00,Postage & Distribution,0370,14.15,Royal Mail,101554,16/01/2014,10195865
INSERTED DETAIL,Economy Development & Culture,Building Control Services,BCS00,Postage & Distribution,0370,0.12,Royal Mail,101554,16/01/2014,10195865
INSERTED DETAIL,Economy Development & Culture,Building Control Services Non-Fee Earning Account,BCS01,Postage & Distribution,0370,0.12,Royal Mail,101554,16/01/2014,10195865
INSERTED DETAIL,Economy Development & Culture,Building Regulation Fee Earning Account,BCS99,Postage & Distribution,0370,2.07,Royal Mail,101554,16/01/2014,10195865
INSERTED DETAIL,Economy Development & Culture,Car Parks General,CPK01,Postage & Distribution,0370,54.65,Royal Mail,101554,16/01/2014,10195865
INSERTED DETAIL,Resources & Corporate Governance,Central Business Support Services,CSS15,Postage & Distribution,0370,608.58,Royal Mail,101554,16/01/2014,10195865
INSERTED DETAIL,Resources & Corporate Governance ,Council Tax and NNDR Collection,CTX01,Postage & Distribution,0370,214.82,Royal Mail,101554,16/01/2014,10195865
INSERTED DETAIL,Economy Development & Culture,Decrim. of Car Parking on street parking,DPE02,Postage & Distribution,0370,218.58,Royal Mail,101554,16/01/2014,10195865
INSERTED DETAIL,Resources & Corporate Governance ,Electoral Registration,ERG00,Postage & Distribution,0370,61.53,Royal Mail,101554,16/01/2014,10195865
INSERTED DETAIL,Sustainable Inclusive Communities,Housing Benefit Administration,HBA00,Postage & Distribution,0370,358.07,Royal Mail,101554,16/01/2014,10195865
INSERTED DETAIL,Housing Revenue Account ,Supervision and Management General,MAN00,Postage & Distribution,0370,1412.84,Royal Mail,101554,16/01/2014,10195865
INSERTED DETAIL,Economy Development & Culture,Planning General/Income,PLN00,Postage & Distribution,0370,324.80,Royal Mail,101554,16/01/2014,10195865
INSERTED DETAIL,Economy Development & Culture,Visitor Centre,VSC00,Postage & Distribution,0370,18.95,Royal Mail,101554,16/01/2014,10195865
INSERTED DETAIL,Resources & Corporate Governance ,General Administration,WAD00,Postage & Distribution,0370,10.27,Royal Mail,101554,16/01/2014,10195865
INSERTED DETAIL,Economy Development & Culture,Art Gallery and Museum,AGM00,Postage & Distribution,0370,1.41,Royal Mail,101554,16/01/2014,10196037
INSERTED DETAIL,Economy Development & Culture,Building Control Services,BCS00,Postage & Distribution,0370,0.09,Royal Mail,101554,16/01/2014,10196037
INSERTED DETAIL,Economy Development & Culture,Building Control Services Non-Fee Earning Account,BCS01,Postage & Distribution,0370,0.09,Royal Mail,101554,16/01/2014,10196037
INSERTED DETAIL,Economy Development & Culture,Building Regulation Fee Earning Account,BCS99,Postage & Distribution,0370,1.61,Royal Mail,101554,16/01/2014,10196037
INSERTED DETAIL,Economy Development & Culture,Car Parks General,CPK01,Postage & Distribution,0370,19.83,Royal Mail,101554,16/01/2014,10196037
INSERTED DETAIL,Resources & Corporate Governance,Central Business Support Services,CSS15,Postage & Distribution,0370,424.86,Royal Mail,101554,16/01/2014,10196037
INSERTED DETAIL,Resources & Corporate Governance ,Council Tax and NNDR Collection,CTX01,Postage & Distribution,0370,235.80,Royal Mail,101554,16/01/2014,10196037
INSERTED DETAIL,Economy Development & Culture,Decrim. of Car Parking on street parking,DPE02,Postage & Distribution,0370,79.34,Royal Mail,101554,16/01/2014,10196037
INSERTED DETAIL,Resources & Corporate Governance ,Electoral Registration,ERG00,Postage & Distribution,0370,16.12,Royal Mail,101554,16/01/2014,10196037
INSERTED DETAIL,Sustainable Inclusive Communities,Housing Benefit Administration,HBA00,Postage & Distribution,0370,88.02,Royal Mail,101554,16/01/2014,10196037
INSERTED DETAIL,Housing Revenue Account ,Supervision and Management General,MAN00,Postage & Distribution,0370,92.80,Royal Mail,101554,16/01/2014,10196037
INSERTED DETAIL,Economy Development & Culture,Planning General/Income,PLN00,Postage & Distribution,0370,115.01,Royal Mail,101554,16/01/2014,10196037
INSERTED DETAIL,Economy Development & Culture,Art Gallery and Museum,AGM00,Postage & Distribution,0370,15.16,Royal Mail,101554,30/01/2014,10196671
INSERTED DETAIL,Economy Development & Culture,Building Control Services,BCS00,Postage & Distribution,0370,0.10,Royal Mail,101554,30/01/2014,10196671
INSERTED DETAIL,Economy Development & Culture,Building Control Services Non-Fee Earning Account,BCS01,Postage & Distribution,0370,0.10,Royal Mail,101554,30/01/2014,10196671
INSERTED DETAIL,Economy Development & Culture,Building Regulation Fee Earning Account,BCS99,Postage & Distribution,0370,1.78,Royal Mail,101554,30/01/2014,10196671
INSERTED DETAIL,Economy Development & Culture,Car Parks General,CPK01,Postage & Distribution,0370,78.50,Royal Mail,101554,30/01/2014,10196671
INSERTED DETAIL,Resources & Corporate Governance,Central Business Support Services,CSS15,Postage & Distribution,0370,244.20,Royal Mail,101554,30/01/2014,10196671
INSERTED DETAIL,Resources & Corporate Governance ,Council Tax and NNDR Collection,CTX01,Postage & Distribution,0370,311.03,Royal Mail,101554,30/01/2014,10196671
INSERTED DETAIL,Economy Development & Culture,Decrim. of Car Parking on street parking,DPE02,Postage & Distribution,0370,314.01,Royal Mail,101554,30/01/2014,10196671
INSERTED DETAIL,Resources & Corporate Governance ,Electoral Registration,ERG00,Postage & Distribution,0370,4.23,Royal Mail,101554,30/01/2014,10196671
INSERTED DETAIL,Sustainable Inclusive Communities,Housing Benefit Administration,HBA00,Postage & Distribution,0370,320.22,Royal Mail,101554,30/01/2014,10196671
INSERTED DETAIL,Housing Revenue Account ,Supervision and Management General,MAN00,Postage & Distribution,0370,40.69,Royal Mail,101554,30/01/2014,10196671
INSERTED DETAIL,Economy Development & Culture,Planning General/Income,PLN00,Postage & Distribution,0370,182.11,Royal Mail,101554,30/01/2014,10196671
INSERTED DETAIL,Resources & Corporate Governance ,General Administration,WAD00,Postage & Distribution,0370,15.28,Royal Mail,101554,30/01/2014,10196671
INSERTED DETAIL,Economy Development & Culture,Grants and Subscriptions,LGS00,Grants To Voluntary Organisations,0720,500.00,Rugby Archaeological Society,101565,16/01/2014,10196514
INSERTED DETAIL,Resources & Corporate Governance,Corporate Property Central Utilities,CPA02,Water Services,0143,3244.55,Severn Trent Water Ltd,101610,23/01/2014,10196592
INSERTED DETAIL,Resources & Corporate Governance,Corporate Property Central Utilities,CPA02,Water Services,0143,1112.57,Severn Trent Water Ltd,101610,23/01/2014,10196600
INSERTED DETAIL,Capital Program ,Disabled Facilities Grant,REN01,Capital Grants,5014,5195.00,Stannah Stairlifts Ltd,101623,02/01/2014,10195632
INSERTED DETAIL,Housing Revenue Account ,Unplanned Maintenance and Repair,UMR00,Capital Contract Payments,5000,5909.36,Stannah Stairlifts Ltd,101623,16/01/2014,10196316
INSERTED DETAIL,Housing Revenue Account ,Unplanned Maintenance and Repair,UMR00,R&M External Contractors,0100,4545.00,Steve Diston Contract Flooring,101668,23/01/2014,10196824
INSERTED DETAIL,Resources & Corporate Governance ,Human Resources Centralised Services,RES31,Training fees,0011,825.00,St John Ambulance,101669,02/01/2014,10195968
INSERTED DETAIL,Resources & Corporate Governance,Housing Maintenance,WHM00,Materials,0303,3333.28,Travis Perkins Trading Co Ltd,101732,02/01/2014,10194528
INSERTED DETAIL,Resources & Corporate Governance,Housing Maintenance,WHM00,Materials,0303,2994.37,Travis Perkins Trading Co Ltd,101732,09/01/2014,10194759
INSERTED DETAIL,Resources & Corporate Governance,Housing Maintenance,WHM00,Materials,0303,5670.55,Travis Perkins Trading Co Ltd,101732,23/01/2014,10195201
INSERTED DETAIL,Resources & Corporate Governance,Housing Maintenance,WHM00,Materials,0303,4829.12,Travis Perkins Trading Co Ltd,101732,16/01/2014,10195626
INSERTED DETAIL,Resources & Corporate Governance,Housing Maintenance,WHM00,Materials,0303,3559.02,Travis Perkins Trading Co Ltd,101732,30/01/2014,10195781
INSERTED DETAIL,Resources & Corporate Governance,Housing Maintenance,WHM00,Materials,0303,2594.85,Travis Perkins Trading Co Ltd,101732,30/01/2014,10196258
INSERTED DETAIL,Resources & Corporate Governance,Housing Maintenance,WHM00,Materials,0303,976.19,Travis Perkins Trading Co Ltd,101732,30/01/2014,10196260
INSERTED DETAIL,Resources & Corporate Governance ,Street Cleansing,WSC00,Vehicle Running Costs,0201,132.06,HI-Q Motorway,101736,02/01/2014,10195375
INSERTED DETAIL,Resources & Corporate Governance ,Domestic Waste Collection,WWC00,Vehicle Running Costs,0201,472.98,HI-Q Motorway,101736,02/01/2014,10195375
INSERTED DETAIL,Resources & Corporate Governance ,Trade Waste Collection,WWC01,Vehicle Running Costs,0201,207.00,HI-Q Motorway,101736,02/01/2014,10195375
INSERTED DETAIL,Resources & Corporate Governance ,Domestic Waste Collection,WWC00,Vehicle Running Costs,0201,1035.00,HI-Q Motorway,101736,02/01/2014,10195596
INSERTED DETAIL,Resources & Corporate Governance ,Trade Waste Collection,WWC01,Vehicle Running Costs,0201,265.98,HI-Q Motorway,101736,02/01/2014,10195596
INSERTED DETAIL,Resources & Corporate Governance ,Domestic Waste Collection,WWC00,Vehicle Running Costs,0201,1242.00,HI-Q Motorway,101736,09/01/2014,10195783
INSERTED DETAIL,Resources & Corporate Governance ,Trade Waste Collection,WWC01,Vehicle Running Costs,0201,54.00,HI-Q Motorway,101736,09/01/2014,10195783
INSERTED DETAIL,Resources & Corporate Governance ,Domestic Waste Collection,WWC00,Vehicle Running Costs,0201,544.89,HI-Q Motorway,101736,16/01/2014,10196288
INSERTED DETAIL,Resources & Corporate Governance ,Domestic Waste Collection,WWC00,Vehicle Running Costs,0201,1006.73,HI-Q Motorway,101736,30/01/2014,10197163
INSERTED DETAIL,Resources & Corporate Governance ,Trade Waste Collection,WWC01,Vehicle Running Costs,0201,258.98,HI-Q Motorway,101736,30/01/2014,10197163
INSERTED DETAIL,Resources & Corporate Governance,Housing Maintenance,WHM00,Vehicle Running Costs,0201,215.17,HI-Q Motorway,101736,30/01/2014,10197164
INSERTED DETAIL,Resources & Corporate Governance ,Street Cleansing,WSC00,Vehicle Running Costs,0201,63.00,HI-Q Motorway,101736,30/01/2014,10197164
INSERTED DETAIL,Resources & Corporate Governance ,Trade Waste Collection,WWC01,Vehicle Running Costs,0201,207.00,HI-Q Motorway,101736,30/01/2014,10197164
INSERTED DETAIL,Resources & Corporate Governance ,Grounds Maintenance,WGM00,Tools,0304,432.39,Tudor Environmental,101743,16/01/2014,10195836
INSERTED DETAIL,Resources & Corporate Governance ,TREE WORKS,WGM01,Vehicle Repair and Maintenance,0200,212.35,Tudor Environmental,101743,30/01/2014,10196980
INSERTED DETAIL,Resources & Corporate Governance ,Grounds Maintenance,WGM00,Materials,0303,223.30,Tudor Environmental,101743,30/01/2014,10196980
INSERTED DETAIL,Resources & Corporate Governance ,TREE WORKS,WGM01,Tools,0304,51.63,Tudor Environmental,101743,30/01/2014,10196980
INSERTED DETAIL,Resources & Corporate Governance ,TREE WORKS,WGM01,Personal Protective Clothing,0340,233.22,Tudor Environmental,101743,30/01/2014,10196980
INSERTED DETAIL,Resources & Corporate Governance ,Domestic Waste Collection,WWC00,Vehicle Repair and Maintenance,0200,463.10,Terberg Matec Uk,101761,02/01/2014,10195602
INSERTED DETAIL,Resources & Corporate Governance ,Trade Waste Collection,WWC01,Vehicle Repair and Maintenance,0200,364.68,Terberg Matec Uk,101761,02/01/2014,10195602
INSERTED DETAIL,Economy Development & Culture,Planning General/Income,PLN00,External Legal Costs,0741,18555.75,Wragge & Co.,101856,16/01/2014,10196419
INSERTED DETAIL,Resources & Corporate Governance ,Retired Employees,RET00,Additional Pension Payments,0014,3559.49,West Midlands Employers,101880,16/01/2014,10196124
INSERTED DETAIL,Resources & Corporate Governance ,General Administration,WAD00,Training fees,0011,2286.00,Warwickshire College,101882,30/01/2014,10197180
INSERTED DETAIL,Housing Revenue Account ,Unplanned Maintenance and Repair,UMR00,R&M External Contractors,0100,470.67,Warwickshire County Council,101893,16/01/2014,10195583
INSERTED DETAIL,Economy Development & Culture,Art Gallery and Museum,AGM00,Contract Cleaning,0170,13013.33,Warwickshire County Council,101893,16/01/2014,10196447
INSERTED DETAIL,Resources & Corporate Governance ,Trade Waste Collection,WWC01,Removal of Waste - WCC,0711,54887.50,Warwickshire County Council,101893,16/01/2014,10196461
INSERTED DETAIL,Resources & Corporate Governance ,Land Charges,LCH00,Payments to Other Local Authorities,0710,7767.90,Warwickshire County Council,101893,23/01/2014,10196811
INSERTED DETAIL,Capital Program ,Electric to Gas Conversions,HIM04,Capital Contract Payments,5000,14431.90,Adroit Services Ltd,101939,02/01/2014,10195663
INSERTED DETAIL,Housing Revenue Account ,Unplanned Maintenance and Repair,UMR00,R&M External Contractors,0100,849.34,Adroit Services Ltd,101939,16/01/2014,10196241
INSERTED DETAIL,Capital Program ,Electric to Gas Conversions,HIM04,Capital Contract Payments,5000,178.00,Adroit Services Ltd,101939,16/01/2014,10196241
INSERTED DETAIL,Capital Program ,Electric to Gas Conversions,HIM04,Capital Contract Payments,5000,8222.76,Adroit Services Ltd,101939,16/01/2014,10196314
INSERTED DETAIL,Housing Revenue Account ,Unplanned Maintenance and Repair,UMR00,R&M External Contractors,0100,267.56,Adroit Services Ltd,101939,16/01/2014,10196451
INSERTED DETAIL,Capital Program ,Electric to Gas Conversions,HIM04,Capital Contract Payments,5000,1204.05,Adroit Services Ltd,101939,16/01/2014,10196451
INSERTED DETAIL,Capital Program ,Electric to Gas Conversions,HIM04,Capital Contract Payments,5000,7786.38,Adroit Services Ltd,101939,16/01/2014,10196526
INSERTED DETAIL,Housing Revenue Account ,Unplanned Maintenance and Repair,UMR00,R&M External Contractors,0100,873.89,Adroit Services Ltd,101939,23/01/2014,10196700
INSERTED DETAIL,Capital Program ,Electric to Gas Conversions,HIM04,Capital Contract Payments,5000,294.68,Adroit Services Ltd,101939,23/01/2014,10196700
INSERTED DETAIL,Housing Revenue Account ,Unplanned Maintenance and Repair,UMR00,R&M External Contractors,0100,937.56,Adroit Services Ltd,101939,23/01/2014,10196796
INSERTED DETAIL,Capital Program ,Electric to Gas Conversions,HIM04,Capital Contract Payments,5000,10236.38,Adroit Services Ltd,101939,23/01/2014,10196816
INSERTED DETAIL,Capital Program ,Electric to Gas Conversions,HIM04,Capital Contract Payments,5000,9800.00,Adroit Services Ltd,101939,30/01/2014,10197066
INSERTED DETAIL,Resources & Corporate Governance ,"Communications, Consultation and Information Team",BTR20,Publicity & Marketing,0377,4000.00,Johnston Publishing Ltd,107468,02/01/2014,10195895
INSERTED DETAIL,Resources & Corporate Governance ,Central Telephone Service,TEL00,Telephone Expenses,0371,974.82,British Telecommunications PLC,108425,02/01/2014,10195858
INSERTED DETAIL,Resources & Corporate Governance ,Central Telephone Service,TEL00,Telephone Expenses,0371,1015.56,British Telecommunications PLC,108425,30/01/2014,10197023
INSERTED DETAIL,Resources & Corporate Governance,Central Business Support Services,CSS15,Stationery Supplies,0350,1014.00,Bank Security Printing Ltd,108686,30/01/2014,10197020
INSERTED DETAIL,Sustainable Environment ,Parks,PKS00,R&M External Contractors,0100,576.25,1ST CLASS HYGIENE LTD,110029,16/01/2014,10196516
INSERTED DETAIL,Resources & Corporate Governance ,Garage Internal,WVR01,Materials,0303,19998.73,Watson Petroleum,110361,16/01/2014,10196031
INSERTED DETAIL,Resources & Corporate Governance ,Garage Internal,WVR01,Materials,0303,27100.00,Watson Petroleum,110361,30/01/2014,10196952
INSERTED DETAIL,Resources & Corporate Governance ,Maintenance of Customer Services Systems,CIS21,Software Maintenance,0374,500.00,Result Software Limited,111010,23/01/2014,10196801
INSERTED DETAIL,Economy Development & Culture,Building Control Services,BCS00,Payments to Other Local Authorities,0710,6839.46,Warwick District Council,111228,30/01/2014,10196358
INSERTED DETAIL,Economy Development & Culture,The Benn Hall,BHL00,Contract Catering,0330,1999.50,The Chefs Kitchen (UK) Limited,111682,02/01/2014,10195991
INSERTED DETAIL,Housing Revenue Account ,Unplanned Maintenance and Repair,UMR00,R&M External Contractors,0100,1710.00,Dampco,111839,16/01/2014,10195980
INSERTED DETAIL,Economy Development & Culture,Visitor Centre,VSC00,Maintenance of Equipment,0301,700.00,Business Reply Ltd,112717,23/01/2014,10196704
INSERTED DETAIL,Resources & Corporate Governance ,Grounds Maintenance,WGM00,Materials,0303,733.70,Geo Browns Implements Ltd,112870,09/01/2014,10194806
INSERTED DETAIL,Resources & Corporate Governance ,Grounds Maintenance,WGM00,Vehicle Repair and Maintenance,0200,952.32,Geo Browns Implements Ltd,112870,09/01/2014,10195584
INSERTED DETAIL,Resources & Corporate Governance ,Domestic Waste Collection,WWC00,Agency Staff,0003,508.37,Extra Personnel Limited,112996,02/01/2014,10195443
INSERTED DETAIL,Resources & Corporate Governance ,TREE WORKS,WGM01,External Contractor & Operator,0742,659.10,Acorn Environmental Management Group Ltd,113313,16/01/2014,10196309
INSERTED DETAIL,Economy Development & Culture,Visitor Centre,VSC00,Events Tickets - Zero Rated,1405,653.40,Catteralls Coach and Travel Services,113835,30/01/2014,10197181
INSERTED DETAIL,Economy Development & Culture,Visitor Centre,VSC00,Events Tickets - Zero Rated,1405,702.90,Catteralls Coach and Travel Services,113835,30/01/2014,10197182
INSERTED DETAIL,Economy Development & Culture,Visitor Centre,VSC00,Events Tickets - Zero Rated,1405,2524.04,Catteralls Coach and Travel Services,113835,30/01/2014,10197185
INSERTED DETAIL,Sustainable Inclusive Communities,Housing Options Team,HOT00,Rents,0140,416.67,Diamond House Hotel,115070,30/01/2014,10197093
INSERTED DETAIL,Resources & Corporate Governance ,Grounds Maintenance,WGM00,Contract Hire,0220,1000.00,Townsend Vehicle Hire,115165,09/01/2014,10195983
INSERTED DETAIL,Resources & Corporate Governance,Housing Maintenance,WHM00,Contract Hire,0220,50.00,Townsend Vehicle Hire,115165,09/01/2014,10195983
INSERTED DETAIL,Capital Program ,Woodland Creation Project,WCP00,Capital Contract Payments,5000,442.52,Brandon Tool Hire,118489,16/01/2014,10196280
INSERTED DETAIL,Resources & Corporate Governance,Corporate Property Central Utilities,CPA02,Electricity,0130,7536.49,Southern Electric,118976,23/01/2014,10196529
INSERTED DETAIL,Resources & Corporate Governance,Corporate Property Central Utilities,CPA02,Electricity,0130,8256.33,Southern Electric,118976,23/01/2014,10196672
INSERTED DETAIL,Economy Development & Culture,Planning General/Income,PLN00,External Legal Costs,0741,1300.00,Mr Richard Kimblin,119247,02/01/2014,10195133
INSERTED DETAIL,Economy Development & Culture,Planning General/Income,PLN00,External Legal Costs,0741,14300.00,Mr Richard Kimblin,119247,02/01/2014,10195630
INSERTED DETAIL,Housing Revenue Account ,Unplanned Maintenance and Repair,UMR00,R&M External Contractors,0100,647.06,Pro-Tec Security Systems,119999,16/01/2014,10196450
INSERTED DETAIL,Housing Revenue Account ,Unplanned Maintenance and Repair,UMR00,R&M External Contractors,0100,411.80,Pro-Tec Security Systems,119999,30/01/2014,10197012
INSERTED DETAIL,Capital Program ,Disabled Adaptations,HCR01,Capital Contract Payments,5000,290.00,Pro-Tec Security Systems,119999,30/01/2014,10197012
INSERTED DETAIL,Resources & Corporate Governance ,Street Cleansing,WSC00,Agency Staff,0003,155.46,G Staff,120173,09/01/2014,10195843
INSERTED DETAIL,Resources & Corporate Governance ,Domestic Waste Collection,WWC00,Agency Staff,0003,630.34,G Staff,120173,09/01/2014,10195843
INSERTED DETAIL,Resources & Corporate Governance ,Toilet Cleaning,WBC01,Agency Staff,0003,201.60,G Staff,120173,09/01/2014,10196082
INSERTED DETAIL,Resources & Corporate Governance ,Domestic Waste Collection,WWC00,Agency Staff,0003,1000.72,G Staff,120173,09/01/2014,10196082
INSERTED DETAIL,Resources & Corporate Governance ,Toilet Cleaning,WBC01,Agency Staff,0003,883.40,G Staff,120173,16/01/2014,10196402
INSERTED DETAIL,Resources & Corporate Governance ,Domestic Waste Collection,WWC00,Agency Staff,0003,856.62,G Staff,120173,16/01/2014,10196402
INSERTED DETAIL,Resources & Corporate Governance ,Human Resources Centralised Services,RES31,Training fees,0011,1233.06,Nelson Training,120218,30/01/2014,10196974
INSERTED DETAIL,Sustainable Environment ,Parks,PKS00,External Contractor & Operator,0742,12484.31,Bristol City Council,120274,09/01/2014,10195870
INSERTED DETAIL,Sustainable Environment ,Parks,PKS00,External Contractor & Operator,0742,3857.58,Bristol City Council,120274,09/01/2014,10195871
INSERTED DETAIL,Resources & Corporate Governance ,Customer and Information Strategy,CIS10,Software Maintenance,0374,7643.84,Jadu Ltd,120407,02/01/2014,10195412
INSERTED DETAIL,Resources & Corporate Governance,Housing Maintenance,WHM00,External Contractor & Operator,0742,670.00,Rugby Roofing,121274,09/01/2014,10195886
INSERTED DETAIL,Sustainable Inclusive Communities,Housing Options Team,HOT00,Agency Staff,0003,666.00,Venn Group Recruitment Solutions,121594,16/01/2014,10195533
INSERTED DETAIL,Sustainable Inclusive Communities,Housing Options Team,HOT00,Agency Staff,0003,657.00,Venn Group Recruitment Solutions,121594,16/01/2014,10195859
INSERTED DETAIL,Sustainable Inclusive Communities,Housing Options Team,HOT00,Agency Staff,0003,882.00,Venn Group Recruitment Solutions,121594,16/01/2014,10195860
INSERTED DETAIL,Sustainable Inclusive Communities,Housing Options Team,HOT00,Agency Staff,0003,643.50,Venn Group Recruitment Solutions,121594,16/01/2014,10196074
INSERTED DETAIL,Sustainable Inclusive Communities,Housing Options Team,HOT00,Agency Staff,0003,1036.00,Venn Group Recruitment Solutions,121594,09/01/2014,10196075
INSERTED DETAIL,Sustainable Inclusive Communities,Housing Options Team,HOT00,Agency Staff,0003,891.52,Venn Group Recruitment Solutions,121594,16/01/2014,10196468
INSERTED DETAIL,Sustainable Inclusive Communities,Housing Options Team,HOT00,Agency Staff,0003,621.00,Venn Group Recruitment Solutions,121594,30/01/2014,10196750
INSERTED DETAIL,Sustainable Inclusive Communities,Housing Options Team,HOT00,Agency Staff,0003,1057.00,Venn Group Recruitment Solutions,121594,23/01/2014,10196751
INSERTED DETAIL,Sustainable Inclusive Communities,Housing Options Team,HOT00,Agency Staff,0003,1036.00,Venn Group Recruitment Solutions,121594,30/01/2014,10197029
INSERTED DETAIL,Sustainable Inclusive Communities,Housing Options Team,HOT00,Agency Staff,0003,558.00,Venn Group Recruitment Solutions,121594,30/01/2014,10197031
INSERTED DETAIL,Resources & Corporate Governance ,Maintenance of Customer Services Systems,CIS21,Software Maintenance,0374,21504.11,Northgate Information Solutions UK Ltd,121606,16/01/2014,10196211
INSERTED DETAIL,Resources & Corporate Governance ,Maintenance of Customer Services Systems,CIS21,Software Maintenance,0374,2173.16,Northgate Information Solutions UK Ltd,121606,30/01/2014,10196978
INSERTED DETAIL,Capital Program ,Crematorium Project,BUR04,IT Capital Expenditure,5025,4105.00,Gower Consultants Ltd,121747,16/01/2014,10196557
INSERTED DETAIL,Capital Program ,Crematorium Project,BUR04,IT Capital Expenditure,5025,6307.50,Gower Consultants Ltd,121747,16/01/2014,10196558
INSERTED DETAIL,Capital Program ,Crematorium Project,BUR04,IT Capital Expenditure,5025,6307.50,Gower Consultants Ltd,121747,16/01/2014,10196559
INSERTED DETAIL,Capital Program ,Crematorium Project,BUR04,IT Capital Expenditure,5025,885.00,Gower Consultants Ltd,121747,16/01/2014,10196560
INSERTED DETAIL,Resources & Corporate Governance ,"Communications, Consultation and Information Team",BTR20,Publicity & Marketing,0377,665.00,Janus Kreative,121748,23/01/2014,10196905
INSERTED DETAIL,Resources & Corporate Governance ,Maintenance of Customer Services Systems,CIS21,Software Maintenance,0374,422.71,Covalent Software Limited,122520,23/01/2014,10196772
INSERTED DETAIL,Housing Revenue Account ,Eliot Court AP,AGP25,New Equipment,0300,2552.77,Rainbows Carpets Ltd,122649,30/01/2014,10196386
INSERTED DETAIL,Housing Revenue Account ,Supervision and Management General,MAN00,Subscriptions,0421,1095.00,HQN Limited,122890,30/01/2014,10197016
INSERTED DETAIL,Resources & Corporate Governance ,Customer and Information Strategy,CIS10,Hardware Maintenance,0376,2556.69,Cable & Wireless/T/A Vodafone,123224,09/01/2014,10196242
INSERTED DETAIL,Resources & Corporate Governance ,Central Telephone Service,TEL00,Telephone Expenses,0371,978.58,Cable & Wireless/T/A Vodafone,123224,16/01/2014,10196472
INSERTED DETAIL,Resources & Corporate Governance ,Grounds Maintenance,WGM00,Materials,0303,1012.50,Rigby Taylor Ltd,123342,30/01/2014,10196999
INSERTED DETAIL,Resources & Corporate Governance ,Domestic Waste Collection,WWC00,Materials,0303,14618.55,SSI Schaefer Ltd,123543,30/01/2014,10196921
INSERTED DETAIL,Resources & Corporate Governance ,General Administration,WAD00,Training fees,0011,750.00,MCPC Systems (UK) Ltd,125225,30/01/2014,10197173
INSERTED DETAIL,Economy Development & Culture,Ken Marriott Leisure Centre,KML00,Other,0763,10000.00,Nuneaton & Bedworth Leisure Trust,125775,30/01/2014,10173621
INSERTED DETAIL,Sustainable Environment ,Parks,PKS00,Maintenance of Equipment,0301,1172.60,Lappset UK Ltd,126163,30/01/2014,10197166
INSERTED DETAIL,Sustainable Environment,Regulatory Services,REG00,Software/Equipment Licences,0379,1061.47,Airwave Solutions Limited,126436,30/01/2014,10197056
INSERTED DETAIL,Capital Program ,Vehicle Workshop Extension,VWE00,Capital Contract Payments,5000,1143.85,Compressor & Vehicle Lift Services Ltd,126546,09/01/2014,10195937
INSERTED DETAIL,Capital Program ,Vehicle Workshop Extension,VWE00,Capital Contract Payments,5000,535.00,Compressor & Vehicle Lift Services Ltd,126546,09/01/2014,10195938
INSERTED DETAIL,Resources & Corporate Governance ,Garage Internal,WVR01,Materials,0303,1291.70,Compressor & Vehicle Lift Services Ltd,126546,09/01/2014,10195939
INSERTED DETAIL,Sustainable Inclusive Communities,Housing Strategy & Enabling,HSE00,Consultancy Costs,0740,3000.00,George and Company (Surveyors) Ltd,126668,23/01/2014,10196728
INSERTED DETAIL,Resources & Corporate Governance ,Domestic Waste Collection,WWC00,Vehicle Repair and Maintenance,0200,626.85,ABS Limited,129026,16/01/2014,10196188
INSERTED DETAIL,Resources & Corporate Governance ,Garage Internal,WVR01,Materials,0303,81.00,ABS Limited,129026,16/01/2014,10196188
INSERTED DETAIL,Resources & Corporate Governance,Housing Maintenance,WHM00,External Contractor & Operator,0742,619.45,M P Hudson & Son,129334,02/01/2014,10195944
INSERTED DETAIL,Resources & Corporate Governance,Housing Maintenance,WHM00,External Contractor & Operator,0742,696.60,M P Hudson & Son,129334,09/01/2014,10196301
INSERTED DETAIL,Resources & Corporate Governance,Housing Maintenance,WHM00,External Contractor & Operator,0742,641.25,M P Hudson & Son,129334,16/01/2014,10196539
INSERTED DETAIL,Resources & Corporate Governance,Housing Maintenance,WHM00,External Contractor & Operator,0742,605.00,M P Hudson & Son,129334,23/01/2014,10196826
INSERTED DETAIL,Resources & Corporate Governance,Housing Maintenance,WHM00,External Contractor & Operator,0742,575.00,M P Hudson & Son,129334,30/01/2014,10197128
INSERTED DETAIL,Capital Program ,Pettiver Crescent,PCH00,Capital Contract Payments,5000,651.00,Geldards LLP,129461,09/01/2014,10194947
INSERTED DETAIL,Economy Development & Culture,Street Furniture,HIG01,External Contractor & Operator,0742,1393.00,I D Welding & Fabrications,131407,30/01/2014,10196401
INSERTED DETAIL,Resources & Corporate Governance ,Electoral Registration,ERG00,Telephone Registration,0411,1141.14,Electoral Reform Services,131623,16/01/2014,10196227
INSERTED DETAIL,Resources & Corporate Governance ,Electoral Registration,ERG00,Training fees,0011,590.00,Association of Electoral Administrators,131701,09/01/2014,10196106
INSERTED DETAIL,Resources & Corporate Governance ,Electoral Registration,ERG00,Training fees,0011,1581.72,Association of Electoral Administrators,131701,23/01/2014,10196440
INSERTED DETAIL,Economy Development & Culture,Car Parks General,CPK01,Cash Collection,0744,1041.20,Jade Security Services Ltd,131711,30/01/2014,10196421
INSERTED DETAIL,Economy Development & Culture,Decrim. of Car Parking on street parking,DPE02,Cash Collection,0744,602.80,Jade Security Services Ltd,131711,30/01/2014,10196422
INSERTED DETAIL,Capital Program ,Disabled Facilities Grant,REN01,Capital Grants,5014,2648.43,D K Builders,131946,02/01/2014,10195881
INSERTED DETAIL,Economy Development & Culture,Town Centre CCTV and Management,TVM00,Other Agencies,0734,20739.58,Rugby First Ltd - BID,133176,02/01/2014,10195840
INSERTED DETAIL,Economy Development & Culture,Town Centre CCTV and Management,TVM00,Other Agencies,0734,20739.58,Rugby First Ltd - BID,133176,16/01/2014,10196605
INSERTED DETAIL,Economy Development & Culture,Festive Lights (Capital),DEC25,Capital Contract Payments,5000,9428.50,Rugby First Ltd - BID,133176,23/01/2014,10196752
INSERTED DETAIL,Economy Development & Culture,Car Parks General,CPK01,Software Maintenance,0374,343.00,Chipside Limited,133289,16/01/2014,10196323
INSERTED DETAIL,Economy Development & Culture,Decrim. of Car Parking on street parking,DPE02,Software Maintenance,0374,1372.00,Chipside Limited,133289,16/01/2014,10196323
INSERTED DETAIL,Economy Development & Culture,Car Parks General,CPK01,R&M External Contractors,0100,433.21,Chipside Limited,133289,16/01/2014,10196324
INSERTED DETAIL,Economy Development & Culture,Decrim. of Car Parking on street parking,DPE02,R&M External Contractors,0100,1732.84,Chipside Limited,133289,16/01/2014,10196324
INSERTED DETAIL,Resources & Corporate Governance ,Highways,WHG00,Materials,0303,627.68,Breedon Aggregates England Limited,133309,23/01/2014,10196708
INSERTED DETAIL,Capital Program ,Open Spaces Refurbishment,LEI08,Capital Contract Payments,5000,4390.00,Easy-gate Ltd,133591,30/01/2014,10197049
INSERTED DETAIL,Sustainable Inclusive Communities,Housing Options Team,HOT00,Agency Staff,0003,908.75,Community Resourcing,133778,16/01/2014,10195403
INSERTED DETAIL,Sustainable Inclusive Communities,Housing Options Team,HOT00,Agency Staff,0003,882.97,Community Resourcing,133778,16/01/2014,10195615
INSERTED DETAIL,Sustainable Inclusive Communities,Housing Options Team,HOT00,Agency Staff,0003,998.98,Community Resourcing,133778,16/01/2014,10196080
INSERTED DETAIL,Sustainable Inclusive Communities,Housing Options Team,HOT00,Agency Staff,0003,992.53,Community Resourcing,133778,16/01/2014,10196081
INSERTED DETAIL,Sustainable Inclusive Communities,Housing Options Team,HOT00,Agency Staff,0003,876.52,Community Resourcing,133778,16/01/2014,10196522
INSERTED DETAIL,Sustainable Inclusive Communities,Housing Options Team,HOT00,Agency Staff,0003,992.53,Community Resourcing,133778,30/01/2014,10196656
INSERTED DETAIL,Sustainable Inclusive Communities,Housing Options Team,HOT00,Agency Staff,0003,1005.42,Community Resourcing,133778,30/01/2014,10196673
INSERTED DETAIL,Sustainable Inclusive Communities,Housing Options Team,HOT00,Agency Staff,0003,1050.54,Community Resourcing,133778,30/01/2014,10197025
INSERTED DETAIL,Resources & Corporate Governance,Housing Maintenance,WHM00,External Contractor & Operator,0742,613.00,Homecare Decorating,133884,09/01/2014,10194191
INSERTED DETAIL,Resources & Corporate Governance,Corporate Property R&M,CPA01,R&M External Contractors,0100,3756.78,Sunfish Services Ltd,133886,09/01/2014,10196133
INSERTED DETAIL,Resources & Corporate Governance ,Human Resources Centralised Services,RES31,External Legal Costs,0741,17050.00,Sean O'Brien,135150,30/01/2014,10197033
INSERTED DETAIL,Housing Revenue Account ,Avon Court AP,AGP02,Electricity,0130,592.82,Southern Electric,135653,16/01/2014,10196476
INSERTED DETAIL,Housing Revenue Account ,Dickinson Court AP,AGP03,Electricity,0130,689.40,Southern Electric,135653,16/01/2014,10196476
INSERTED DETAIL,Housing Revenue Account ,Duffy Place AP,AGP04,Electricity,0130,716.89,Southern Electric,135653,16/01/2014,10196476
INSERTED DETAIL,Housing Revenue Account ,Frederick Press Way AP,AGP06,Electricity,0130,78.97,Southern Electric,135653,16/01/2014,10196476
INSERTED DETAIL,Housing Revenue Account ,Mercer Court AP,AGP09,Electricity,0130,2069.82,Southern Electric,135653,16/01/2014,10196476
INSERTED DETAIL,Housing Revenue Account ,Pettiver Crescent I AP,AGP10,Electricity,0130,794.99,Southern Electric,135653,16/01/2014,10196476
INSERTED DETAIL,Housing Revenue Account ,Sun Street/Windsor Street AP,AGP14,Electricity,0130,728.88,Southern Electric,135653,16/01/2014,10196476
INSERTED DETAIL,Housing Revenue Account ,Lesley Souter House AP,AGP16,Electricity,0130,1375.23,Southern Electric,135653,16/01/2014,10196476
INSERTED DETAIL,Housing Revenue Account ,Edward Court AP,AGP19,Electricity,0130,726.83,Southern Electric,135653,16/01/2014,10196476
INSERTED DETAIL,Housing Revenue Account ,Albert Square AP,AGP20,Electricity,0130,27.01,Southern Electric,135653,16/01/2014,10196476
INSERTED DETAIL,Housing Revenue Account ,Clare Court Site,AGP27,Electricity,0130,127.32,Southern Electric,135653,16/01/2014,10196476
INSERTED DETAIL,Housing Revenue Account ,Alexandra/James Court AP,AGP30,Electricity,0130,324.22,Southern Electric,135653,16/01/2014,10196476
INSERTED DETAIL,Housing Revenue Account ,Clifton Road AP,AGP41,Electricity,0130,82.02,Southern Electric,135653,16/01/2014,10196476
INSERTED DETAIL,Housing Revenue Account ,Featherbed Lane I AP,AGP45,Electricity,0130,542.44,Southern Electric,135653,16/01/2014,10196476
INSERTED DETAIL,Housing Revenue Account ,Fox Close AP,AGP47,Electricity,0130,108.33,Southern Electric,135653,16/01/2014,10196476
INSERTED DETAIL,Housing Revenue Account ,Great Balance Brinklow AP,AGP48,Electricity,0130,27.32,Southern Electric,135653,16/01/2014,10196476
INSERTED DETAIL,Housing Revenue Account ,Jackson Road I AP,AGP53,Electricity,0130,59.81,Southern Electric,135653,16/01/2014,10196476
INSERTED DETAIL,Housing Revenue Account ,Lever Road I AP,AGP57,Electricity,0130,101.72,Southern Electric,135653,16/01/2014,10196476
INSERTED DETAIL,Housing Revenue Account ,The Kent AP,AGP67,Electricity,0130,106.53,Southern Electric,135653,16/01/2014,10196476
INSERTED DETAIL,Housing Revenue Account ,Control Centre CCTV,CCE01,Electricity,0130,2002.02,Southern Electric,135653,16/01/2014,10196476
INSERTED DETAIL,Housing Revenue Account ,Supervision and Management General,MAN00,Electricity,0130,323.19,Southern Electric,135653,16/01/2014,10196476
INSERTED DETAIL,Housing Revenue Account ,Multi-Storey Flats,MSF00,Electricity,0130,8330.81,Southern Electric,135653,16/01/2014,10196476
INSERTED DETAIL,Sustainable Inclusive Communities,Housing Strategy & Enabling,HSE00,Agency Staff,0003,672.81,Morgan Hunt UK Ltd,136143,02/01/2014,10195673
INSERTED DETAIL,Sustainable Inclusive Communities,Housing Strategy & Enabling,HSE00,Agency Staff,0003,683.75,Morgan Hunt UK Ltd,136143,16/01/2014,10196470
INSERTED DETAIL,Sustainable Inclusive Communities,Housing Strategy & Enabling,HSE00,Agency Staff,0003,574.35,Morgan Hunt UK Ltd,136143,23/01/2014,10196950
INSERTED DETAIL,Sustainable Inclusive Communities,Housing Strategy & Enabling,HSE00,Agency Staff,0003,793.15,Morgan Hunt UK Ltd,136143,30/01/2014,10197027
INSERTED DETAIL,Sustainable Inclusive Communities,Housing Strategy & Enabling,HSE00,Agency Staff,0003,711.10,Morgan Hunt UK Ltd,136143,30/01/2014,10197028
INSERTED DETAIL,Resources & Corporate Governance ,Council Tax and NNDR Collection,CTX01,External Legal Costs,0741,768.00,Summers Nigh Law,136330,16/01/2014,10196606
INSERTED DETAIL,Resources & Corporate Governance ,Council Tax and NNDR Collection,CTX01,External Legal Costs,0741,728.00,Summers Nigh Law,136330,16/01/2014,10196607
INSERTED DETAIL,Resources & Corporate Governance ,Domestic Waste Collection,WWC00,Vehicle Repair and Maintenance,0200,6784.99,Heil Farid European Company Ltd,137390,23/01/2014,10196722
INSERTED DETAIL,Resources & Corporate Governance ,Domestic Waste Collection,WWC00,Vehicle Repair and Maintenance,0200,4540.86,Heil Farid European Company Ltd,137390,30/01/2014,10197165
INSERTED DETAIL,Sustainable Environment ,Cemeteries General,CEM00,Professional Subscriptions,0017,727.00,The Federation of Burial and Cremation Authorities,137587,09/01/2014,10196068
INSERTED DETAIL,Resources & Corporate Governance ,Street Cleansing,WSC00,Materials,0303,545.00,Danline International Ltd,137588,02/01/2014,10195439
INSERTED DETAIL,Resources & Corporate Governance ,Grounds Maintenance,WGM00,External Contractor & Operator,0742,1250.00,D J Whitlock Plant Hire,140156,23/01/2014,10196827
INSERTED DETAIL,Resources & Corporate Governance ,Grounds Maintenance,WGM00,External Contractor & Operator,0742,1250.00,D J Whitlock Plant Hire,140156,30/01/2014,10196828
INSERTED DETAIL,Resources & Corporate Governance ,Grounds Maintenance,WGM00,External Contractor & Operator,0742,1250.00,D J Whitlock Plant Hire,140156,23/01/2014,10196829
INSERTED DETAIL,Sustainable Environment ,Parks,PKS00,External Contractor & Operator,0742,1089.00,StoneWall Security Ltd,140775,23/01/2014,10196597
INSERTED DETAIL,Housing Revenue Account ,Unplanned Maintenance and Repair,UMR00,R&M External Contractors,0100,686.40,Elite Sweep Service,141080,30/01/2014,10197192
INSERTED DETAIL,Housing Revenue Account ,Unplanned Maintenance and Repair,UMR00,R&M External Contractors,0100,1989.94,Elite Sweep Service,141080,30/01/2014,10197193
INSERTED DETAIL,Economy Development & Culture,Visitor Centre,VSC00,Events Tickets - Standard Rated,1404,745.75,Society of London Theatre,141169,16/01/2014,10196246
INSERTED DETAIL,Sustainable Inclusive Communities,Woodside Park,TVR00,R&M External Contractors,0100,3901.88,Quadrant Security Group Limited,141441,09/01/2014,10195962
INSERTED DETAIL,Resources & Corporate Governance ,Customer and Information Strategy,CIS10,Telephone Expenses,0371,780.57,Zen Internet Ltd,141612,09/01/2014,10195862
INSERTED DETAIL,Resources & Corporate Governance ,Council Tax and NNDR Collection,CTX01,Telephone Expenses,0371,21.27,Zen Internet Ltd,141612,09/01/2014,10195862
INSERTED DETAIL,Resources & Corporate Governance ,Customer and Information Strategy,CIS10,Telephone Expenses,0371,880.62,Zen Internet Ltd,141612,30/01/2014,10196896
INSERTED DETAIL,Resources & Corporate Governance ,Council Tax and NNDR Collection,CTX01,Telephone Expenses,0371,21.27,Zen Internet Ltd,141612,30/01/2014,10196896
INSERTED DETAIL,Sustainable Inclusive Communities,Housing Benefit Administration,HBA00,Telephone Expenses,0371,30.81,Zen Internet Ltd,141612,30/01/2014,10196896
INSERTED DETAIL,Resources & Corporate Governance ,Street Cleansing,WSC00,Vehicle Repair and Maintenance,0200,422.60,Johnston Sweepers Ltd,141632,02/01/2014,10195119
INSERTED DETAIL,Housing Revenue Account ,Gas Heating Systems,UMR01,R&M External Contractors,0100,780.00,Ascertiva Group Ltd,142076,23/01/2014,10196635
INSERTED DETAIL,Sustainable Inclusive Communities,Housing Benefit Administration,HBA00,Training fees,0011,750.00,Hbinfo Ltd,144002,09/01/2014,10195970
INSERTED DETAIL,Economy Development & Culture,Car Parks General,CPK01,Other Agencies,0734,297.24,PATROL,144963,30/01/2014,10196872
INSERTED DETAIL,Economy Development & Culture,Decrim. of Car Parking on street parking,DPE02,Other Agencies,0734,1188.96,PATROL,144963,30/01/2014,10196872
INSERTED DETAIL,Housing Revenue Account ,Control Centre CCTV,CCE01,External Contractor & Operator,0742,15574.92,Securitas Security Personnel Ltd,145079,09/01/2014,10196054
INSERTED DETAIL,Housing Revenue Account ,Control Centre CCTV,CCE01,External Legal Costs,0741,15574.92,Securitas Security Personnel Ltd,145079,30/01/2014,10197117
INSERTED DETAIL,Resources & Corporate Governance,Housing Maintenance,WHM00,Agency Staff,0003,1312.45,Blue Arrow Limited,145492,02/01/2014,10195364
INSERTED DETAIL,Resources & Corporate Governance ,Street Cleansing,WSC00,Agency Staff,0003,813.36,Blue Arrow Limited,145492,02/01/2014,10195364
INSERTED DETAIL,Resources & Corporate Governance ,Domestic Waste Collection,WWC00,Agency Staff,0003,563.62,Blue Arrow Limited,145492,02/01/2014,10195364
INSERTED DETAIL,Resources & Corporate Governance ,Trade Waste Collection,WWC01,Agency Staff,0003,532.51,Blue Arrow Limited,145492,02/01/2014,10195364
INSERTED DETAIL,Resources & Corporate Governance,Housing Maintenance,WHM00,Agency Staff,0003,657.80,Blue Arrow Limited,145492,16/01/2014,10196190
INSERTED DETAIL,Resources & Corporate Governance ,Street Cleansing,WSC00,Agency Staff,0003,606.18,Blue Arrow Limited,145492,16/01/2014,10196190
INSERTED DETAIL,Resources & Corporate Governance ,Domestic Waste Collection,WWC00,Agency Staff,0003,488.16,Blue Arrow Limited,145492,16/01/2014,10196190
INSERTED DETAIL,Resources & Corporate Governance,Housing Maintenance,WHM00,Agency Staff,0003,505.56,Blue Arrow Limited,145492,16/01/2014,10196403
INSERTED DETAIL,Resources & Corporate Governance ,Street Cleansing,WSC00,Agency Staff,0003,425.10,Blue Arrow Limited,145492,16/01/2014,10196403
INSERTED DETAIL,Resources & Corporate Governance ,Domestic Waste Collection,WWC00,Agency Staff,0003,3220.32,Blue Arrow Limited,145492,16/01/2014,10196403
INSERTED DETAIL,Resources & Corporate Governance ,Trade Waste Collection,WWC01,Agency Staff,0003,168.95,Blue Arrow Limited,145492,16/01/2014,10196403
INSERTED DETAIL,Resources & Corporate Governance,Housing Maintenance,WHM00,Agency Staff,0003,2257.79,Blue Arrow Limited,145492,23/01/2014,10196706
INSERTED DETAIL,Resources & Corporate Governance ,Street Cleansing,WSC00,Agency Staff,0003,813.37,Blue Arrow Limited,145492,23/01/2014,10196706
INSERTED DETAIL,Resources & Corporate Governance ,Domestic Waste Collection,WWC00,Agency Staff,0003,635.19,Blue Arrow Limited,145492,23/01/2014,10196706
INSERTED DETAIL,Resources & Corporate Governance,Housing Maintenance,WHM00,Agency Staff,0003,2105.54,Blue Arrow Limited,145492,30/01/2014,10197169
INSERTED DETAIL,Resources & Corporate Governance ,Street Cleansing,WSC00,Agency Staff,0003,597.29,Blue Arrow Limited,145492,30/01/2014,10197169
INSERTED DETAIL,Resources & Corporate Governance ,Domestic Waste Collection,WWC00,Agency Staff,0003,1078.66,Blue Arrow Limited,145492,30/01/2014,10197169
INSERTED DETAIL,Housing Revenue Account ,Supervision and Management General,MAN00,Publicity & Marketing,0377,958.25,Impress Print,145574,23/01/2014,10196625
INSERTED DETAIL,Capital Program ,Disabled Facilities Grant,REN01,Capital Grants,5014,5479.00,Inhouse Renovations,145963,23/01/2014,10196586
INSERTED DETAIL,Resources & Corporate Governance,Corporate Property R&M,CPA01,R&M External Contractors,0100,514.00,Stanair Industrial Services Ltd,146499,30/01/2014,10196982
INSERTED DETAIL,Resources & Corporate Governance ,Street Cleansing,WSC00,Contract Hire,0220,500.00,RT Sweeper Services Ltd,146604,02/01/2014,10195368
INSERTED DETAIL,Resources & Corporate Governance,Housing Maintenance,WHM00,External Contractor & Operator,0742,497.00,Mick Brown Plastering,146699,09/01/2014,10195363
INSERTED DETAIL,Resources & Corporate Governance ,"Communications, Consultation and Information Team",BTR20,Publicity & Marketing,0377,998.00,The Printing House Ltd,146767,09/01/2014,10196230
INSERTED DETAIL,Resources & Corporate Governance ,Domestic Waste Collection,WWC00,Agency Staff,0003,503.90,Fresh Recruitment Solutions (FRS) Ltd,146784,16/01/2014,10196486
INSERTED DETAIL,Resources & Corporate Governance ,Domestic Waste Collection,WWC00,Agency Staff,0003,503.90,Fresh Recruitment Solutions (FRS) Ltd,146784,16/01/2014,10196487
INSERTED DETAIL,Resources & Corporate Governance,Corporate Property R&M,CPA01,R&M External Contractors,0100,875.00,Environmental Essentials Ltd,146842,02/01/2014,10195966
INSERTED DETAIL,Resources & Corporate Governance ,Retired Employees,RET00,Additional Pension Payments,0014,11096.71,WCC Pension Fund,146914,02/01/2014,10196026
INSERTED DETAIL,Resources & Corporate Governance ,Retired Employees,RET00,Additional Pension Payments,0014,11096.71,WCC Pension Fund,146914,30/01/2014,10197114
INSERTED DETAIL,Economy Development & Culture,Building Control Services,BCS00,Postage & Distribution,0370,0.83,TNT Post Midlands Ltd,146983,02/01/2014,10195761
INSERTED DETAIL,Economy Development & Culture,Building Control Services Non-Fee Earning Account,BCS01,Postage & Distribution,0370,0.83,TNT Post Midlands Ltd,146983,02/01/2014,10195761
INSERTED DETAIL,Economy Development & Culture,Building Regulation Fee Earning Account,BCS99,Postage & Distribution,0370,15.02,TNT Post Midlands Ltd,146983,02/01/2014,10195761
INSERTED DETAIL,Resources & Corporate Governance,Central Business Support Services,CSS15,Postage & Distribution,0370,75.68,TNT Post Midlands Ltd,146983,02/01/2014,10195761
INSERTED DETAIL,Resources & Corporate Governance ,Council Tax and NNDR Collection,CTX01,Postage & Distribution,0370,205.30,TNT Post Midlands Ltd,146983,02/01/2014,10195761
INSERTED DETAIL,Resources & Corporate Governance ,Electoral Registration,ERG00,Postage & Distribution,0370,7.96,TNT Post Midlands Ltd,146983,02/01/2014,10195761
INSERTED DETAIL,Sustainable Inclusive Communities,Housing Benefit Administration,HBA00,Postage & Distribution,0370,126.39,TNT Post Midlands Ltd,146983,02/01/2014,10195761
INSERTED DETAIL,Housing Revenue Account ,Supervision and Management General,MAN00,Postage & Distribution,0370,25.40,TNT Post Midlands Ltd,146983,02/01/2014,10195761
INSERTED DETAIL,Resources & Corporate Governance ,General Administration,WAD00,Postage & Distribution,0370,8.22,TNT Post Midlands Ltd,146983,02/01/2014,10195761
INSERTED DETAIL,Economy Development & Culture,Building Control Services,BCS00,Postage & Distribution,0370,0.56,TNT Post Midlands Ltd,146983,09/01/2014,10196035
INSERTED DETAIL,Economy Development & Culture,Building Control Services Non-Fee Earning Account,BCS01,Postage & Distribution,0370,0.56,TNT Post Midlands Ltd,146983,09/01/2014,10196035
INSERTED DETAIL,Economy Development & Culture,Building Regulation Fee Earning Account,BCS99,Postage & Distribution,0370,10.01,TNT Post Midlands Ltd,146983,09/01/2014,10196035
INSERTED DETAIL,Resources & Corporate Governance,Central Business Support Services,CSS15,Postage & Distribution,0370,48.13,TNT Post Midlands Ltd,146983,09/01/2014,10196035
INSERTED DETAIL,Resources & Corporate Governance ,Council Tax and NNDR Collection,CTX01,Postage & Distribution,0370,233.58,TNT Post Midlands Ltd,146983,09/01/2014,10196035
INSERTED DETAIL,Resources & Corporate Governance ,Electoral Registration,ERG00,Postage & Distribution,0370,9.68,TNT Post Midlands Ltd,146983,09/01/2014,10196035
INSERTED DETAIL,Sustainable Inclusive Communities,Housing Benefit Administration,HBA00,Postage & Distribution,0370,168.73,TNT Post Midlands Ltd,146983,09/01/2014,10196035
INSERTED DETAIL,Housing Revenue Account ,Supervision and Management General,MAN00,Postage & Distribution,0370,25.70,TNT Post Midlands Ltd,146983,09/01/2014,10196035
INSERTED DETAIL,Resources & Corporate Governance ,General Administration,WAD00,Postage & Distribution,0370,5.16,TNT Post Midlands Ltd,146983,09/01/2014,10196035
INSERTED DETAIL,Economy Development & Culture,Building Control Services,BCS00,Postage & Distribution,0370,0.61,TNT Post Midlands Ltd,146983,30/01/2014,10196666
INSERTED DETAIL,Economy Development & Culture,Building Control Services Non-Fee Earning Account,BCS01,Postage & Distribution,0370,0.62,TNT Post Midlands Ltd,146983,30/01/2014,10196666
INSERTED DETAIL,Economy Development & Culture,Building Regulation Fee Earning Account,BCS99,Postage & Distribution,0370,11.07,TNT Post Midlands Ltd,146983,30/01/2014,10196666
INSERTED DETAIL,Resources & Corporate Governance,Central Business Support Services,CSS15,Postage & Distribution,0370,60.39,TNT Post Midlands Ltd,146983,30/01/2014,10196666
INSERTED DETAIL,Resources & Corporate Governance ,Council Tax and NNDR Collection,CTX01,Postage & Distribution,0370,194.56,TNT Post Midlands Ltd,146983,30/01/2014,10196666
INSERTED DETAIL,Resources & Corporate Governance ,Electoral Registration,ERG00,Postage & Distribution,0370,11.63,TNT Post Midlands Ltd,146983,30/01/2014,10196666
INSERTED DETAIL,Sustainable Inclusive Communities,Housing Benefit Administration,HBA00,Postage & Distribution,0370,135.37,TNT Post Midlands Ltd,146983,30/01/2014,10196666
INSERTED DETAIL,Housing Revenue Account ,Supervision and Management General,MAN00,Postage & Distribution,0370,1329.99,TNT Post Midlands Ltd,146983,30/01/2014,10196666
INSERTED DETAIL,Resources & Corporate Governance ,General Administration,WAD00,Postage & Distribution,0370,16.57,TNT Post Midlands Ltd,146983,30/01/2014,10196666
INSERTED DETAIL,Housing Revenue Account ,Unplanned Maintenance and Repair,UMR00,R&M External Contractors,0100,2155.11,T. Clarke East Ltd,147073,16/01/2014,10194196
INSERTED DETAIL,Housing Revenue Account ,Unplanned Maintenance and Repair,UMR00,R&M External Contractors,0100,1932.42,T. Clarke East Ltd,147073,16/01/2014,10194197
INSERTED DETAIL,Capital Program ,Kitchen Modifications,HIK10,Capital Contract Payments,5000,42400.00,CLC Contractors Ltd,147076,09/01/2014,10194542
INSERTED DETAIL,Resources & Corporate Governance,Housing Maintenance,WHM00,External Contractor & Operator,0742,2025.00,K A Cooke Limited,147120,16/01/2014,10196458
INSERTED DETAIL,Resources & Corporate Governance,Housing Maintenance,WHM00,External Contractor & Operator,0742,810.00,K A Cooke Limited,147120,16/01/2014,10196459
INSERTED DETAIL,Resources & Corporate Governance ,Domestic Waste Collection,WWC00,External Contractor & Operator,0742,900.00,James Baxter Haulage Ltd,147159,09/01/2014,10196077
INSERTED DETAIL,Resources & Corporate Governance ,Domestic Waste Collection,WWC00,External Contractor & Operator,0742,904.50,James Baxter Haulage Ltd,147159,23/01/2014,10196657
INSERTED DETAIL,Resources & Corporate Governance ,Domestic Waste Collection,WWC00,External Contractor & Operator,0742,750.00,James Baxter Haulage Ltd,147159,30/01/2014,10197026
INSERTED DETAIL,Resources & Corporate Governance ,Domestic Waste Collection,WWC00,External Contractor & Operator,0742,450.00,James Baxter Haulage Ltd,147159,30/01/2014,10197191
INSERTED DETAIL,Resources & Corporate Governance,Corporate Property R&M,CPA01,R&M External Contractors,0100,2935.00,Arden Construction Ltd,147430,02/01/2014,10195647
INSERTED DETAIL,Resources & Corporate Governance,Corporate Property R&M,CPA01,R&M External Contractors,0100,2715.00,Arden Construction Ltd,147430,16/01/2014,10196433
INSERTED DETAIL,Capital Program ,Kitchen Modifications,HIK10,Capital Contract Payments,5000,461.43,Rixonway Kitchens Ltd,147446,16/01/2014,10192573
INSERTED DETAIL,Capital Program ,Kitchen Modifications,HIK10,Capital Contract Payments,5000,8642.13,Rixonway Kitchens Ltd,147446,02/01/2014,10195721
INSERTED DETAIL,Capital Program ,Kitchen Modifications,HIK10,Capital Contract Payments,5000,2915.09,Rixonway Kitchens Ltd,147446,23/01/2014,10196492
INSERTED DETAIL,Resources & Corporate Governance,Housing Maintenance,WHM00,External Contractor & Operator,0742,700.00,Longfield Tree & Hedge Care,147529,09/01/2014,10195984
INSERTED DETAIL,Resources & Corporate Governance,Housing Maintenance,WHM00,External Contractor & Operator,0742,575.00,Longfield Tree & Hedge Care,147529,23/01/2014,10196310
INSERTED DETAIL,Capital Program ,Disabled Facilities Grant,REN01,Capital Grants,5014,4680.00,Pollards Property Solution,147541,16/01/2014,10196327
INSERTED DETAIL,Capital Program ,Disabled Facilities Grant,REN01,Capital Grants,5014,4850.00,Pollards Property Solution,147541,16/01/2014,10196355
INSERTED DETAIL,Resources & Corporate Governance ,Grounds Maintenance,WGM00,Vehicle Repair and Maintenance,0200,1222.71,Tallis Amos Group Limited,147758,02/01/2014,10195334
INSERTED DETAIL,Capital Program ,Open Spaces Refurbishment,LEI08,Capital Contract Payments,5000,23825.00,Global Sales,147961,16/01/2014,10195963
INSERTED DETAIL,Resources & Corporate Governance ,Domestic Waste Collection,WWC00,Vehicle Repair and Maintenance,0200,539.27,Dell Equipment Ltd,147979,02/01/2014,10195294
INSERTED DETAIL,Capital Program ,Queen's Diamond Jubilee Leisure Centre Project,LEI03,Capital Contract Payments,5000,34171.96,Shepherd Construction Ltd,148014,23/01/2014,10196732
INSERTED DETAIL,Resources & Corporate Governance ,Grounds Maintenance,WGM00,Vehicle Repair and Maintenance,0200,863.55,Paynes Garages Limited,148024,23/01/2014,10196766
INSERTED DETAIL,Resources & Corporate Governance,Housing Maintenance,WHM00,External Contractor & Operator,0742,585.00,Dean Hudson,148035,02/01/2014,10195942
INSERTED DETAIL,Resources & Corporate Governance,Housing Maintenance,WHM00,External Contractor & Operator,0742,581.25,Dean Hudson,148035,16/01/2014,10196538
INSERTED DETAIL,Resources & Corporate Governance,Housing Maintenance,WHM00,External Contractor & Operator,0742,570.00,Dean Hudson,148035,23/01/2014,10196825
INSERTED DETAIL,Resources & Corporate Governance,Housing Maintenance,WHM00,External Contractor & Operator,0742,555.00,Dean Hudson,148035,30/01/2014,10197127
INSERTED DETAIL,Economy Development & Culture,The Benn Hall,BHL00,Recruitment Expenses,0012,19.95,Team Prevent UK Ltd,148151,23/01/2014,10196435
INSERTED DETAIL,Resources & Corporate Governance ,Electoral Registration,ERG00,Recruitment Expenses,0012,19.95,Team Prevent UK Ltd,148151,23/01/2014,10196435
INSERTED DETAIL,Sustainable Inclusive Communities,Housing Strategy & Enabling,HSE00,Recruitment Expenses,0012,19.95,Team Prevent UK Ltd,148151,23/01/2014,10196435
INSERTED DETAIL,Economy Development & Culture,Play Projects (revenue),LSD09,Recruitment Expenses,0012,19.95,Team Prevent UK Ltd,148151,23/01/2014,10196435
INSERTED DETAIL,Housing Revenue Account ,Estate Management,MAN22,Recruitment Expenses,0012,19.95,Team Prevent UK Ltd,148151,23/01/2014,10196435
INSERTED DETAIL,Resources & Corporate Governance,Housing Maintenance,WHM00,Recruitment Expenses,0012,19.95,Team Prevent UK Ltd,148151,23/01/2014,10196435
INSERTED DETAIL,Economy Development & Culture,Art Gallery and Museum,AGM00,Employee wellbeing/Other employee expenses,0021,85.00,Team Prevent UK Ltd,148151,23/01/2014,10196435
INSERTED DETAIL,Housing Revenue Account ,Control Centre (HRA),CCE00,Employee wellbeing/Other employee expenses,0021,170.00,Team Prevent UK Ltd,148151,23/01/2014,10196435
INSERTED DETAIL,Resources & Corporate Governance,Business Support Services,CSS10,Employee wellbeing/Other employee expenses,0021,155.00,Team Prevent UK Ltd,148151,23/01/2014,10196435
INSERTED DETAIL,Resources & Corporate Governance ,Electoral Registration,ERG00,Employee wellbeing/Other employee expenses,0021,17.50,Team Prevent UK Ltd,148151,23/01/2014,10196435
INSERTED DETAIL,Economy Development & Culture,Play Projects (revenue),LSD09,Employee wellbeing/Other employee expenses,0021,17.50,Team Prevent UK Ltd,148151,23/01/2014,10196435
INSERTED DETAIL,Sustainable Environment,Regulatory Services,REG00,Employee wellbeing/Other employee expenses,0021,85.00,Team Prevent UK Ltd,148151,23/01/2014,10196435
INSERTED DETAIL,Resources & Corporate Governance ,Grounds Maintenance,WGM00,Employee wellbeing/Other employee expenses,0021,102.50,Team Prevent UK Ltd,148151,23/01/2014,10196435
INSERTED DETAIL,Resources & Corporate Governance,Housing Maintenance,WHM00,Employee wellbeing/Other employee expenses,0021,445.00,Team Prevent UK Ltd,148151,23/01/2014,10196435
INSERTED DETAIL,Resources & Corporate Governance ,Domestic Waste Collection,WWC00,Employee wellbeing/Other employee expenses,0021,85.00,Team Prevent UK Ltd,148151,23/01/2014,10196435
INSERTED DETAIL,Resources & Corporate Governance ,Customer and Information Strategy,CIS10,Recruitment Expenses,0012,39.90,Team Prevent UK Ltd,148151,16/01/2014,10196439
INSERTED DETAIL,Sustainable Inclusive Communities,Housing Benefit Administration,HBA00,Recruitment Expenses,0012,19.95,Team Prevent UK Ltd,148151,16/01/2014,10196439
INSERTED DETAIL,Sustainable Environment,Regulatory Services,REG00,Recruitment Expenses,0012,19.95,Team Prevent UK Ltd,148151,16/01/2014,10196439
INSERTED DETAIL,Resources & Corporate Governance ,TREE WORKS,WGM01,Recruitment Expenses,0012,19.95,Team Prevent UK Ltd,148151,16/01/2014,10196439
INSERTED DETAIL,Resources & Corporate Governance ,Street Cleansing,WSC00,Recruitment Expenses,0012,19.95,Team Prevent UK Ltd,148151,16/01/2014,10196439
INSERTED DETAIL,Resources & Corporate Governance ,Domestic Waste Collection,WWC00,Recruitment Expenses,0012,39.90,Team Prevent UK Ltd,148151,16/01/2014,10196439
INSERTED DETAIL,Housing Revenue Account ,Control Centre (HRA),CCE00,Employee wellbeing/Other employee expenses,0021,69.00,Team Prevent UK Ltd,148151,16/01/2014,10196439
INSERTED DETAIL,Resources & Corporate Governance ,General Administration,WAD00,Employee wellbeing/Other employee expenses,0021,40.00,Team Prevent UK Ltd,148151,16/01/2014,10196439
INSERTED DETAIL,Resources & Corporate Governance ,Street Cleansing,WSC00,Employee wellbeing/Other employee expenses,0021,85.00,Team Prevent UK Ltd,148151,16/01/2014,10196439
INSERTED DETAIL,Resources & Corporate Governance ,Domestic Waste Collection,WWC00,Employee wellbeing/Other employee expenses,0021,85.00,Team Prevent UK Ltd,148151,16/01/2014,10196439
INSERTED DETAIL,Resources & Corporate Governance ,Trade Waste Collection,WWC01,Employee wellbeing/Other employee expenses,0021,80.00,Team Prevent UK Ltd,148151,16/01/2014,10196439
INSERTED DETAIL,Resources & Corporate Governance ,Occupational Health and Welfare,OHW00,Employee wellbeing/Other employee expenses,0021,3500.00,Team Prevent UK Ltd,148151,30/01/2014,10197187
INSERTED DETAIL,Sustainable Environment,Regulatory Services,REG00,Recruitment Expenses,0012,19.95,Team Prevent UK Ltd,148151,30/01/2014,10197188
INSERTED DETAIL,Economy Development & Culture,Visitor Centre,VSC00,Recruitment Expenses,0012,19.95,Team Prevent UK Ltd,148151,30/01/2014,10197188
INSERTED DETAIL,Housing Revenue Account ,Control Centre (HRA),CCE00,Employee wellbeing/Other employee expenses,0021,40.00,Team Prevent UK Ltd,148151,30/01/2014,10197188
INSERTED DETAIL,Sustainable Environment,Regulatory Services,REG00,Employee wellbeing/Other employee expenses,0021,17.50,Team Prevent UK Ltd,148151,30/01/2014,10197188
INSERTED DETAIL,Resources & Corporate Governance ,TREE WORKS,WGM01,Employee wellbeing/Other employee expenses,0021,160.00,Team Prevent UK Ltd,148151,30/01/2014,10197188
INSERTED DETAIL,Resources & Corporate Governance ,Highways,WHG00,Employee wellbeing/Other employee expenses,0021,40.00,Team Prevent UK Ltd,148151,30/01/2014,10197188
INSERTED DETAIL,Resources & Corporate Governance ,Street Cleansing,WSC00,Employee wellbeing/Other employee expenses,0021,80.00,Team Prevent UK Ltd,148151,30/01/2014,10197188
INSERTED DETAIL,Resources & Corporate Governance ,Domestic Waste Collection,WWC00,Employee wellbeing/Other employee expenses,0021,160.00,Team Prevent UK Ltd,148151,30/01/2014,10197188
INSERTED DETAIL,Capital Program ,Crematorium Project,BUR04,IT Capital Expenditure,5025,7648.07,Probrand Limited,148276,16/01/2014,10196488
INSERTED DETAIL,Capital Program ,Capital Partnership Fund,CGR01,Capital Grants,5014,10000.00,12th Rugby Scout Group,148319,02/01/2014,10195890
INSERTED DETAIL,Capital Program ,Pettiver Crescent,PCH00,Capital Contract Payments,5000,1599.38,"Gotch, Saunders & Surridge LLP , t/a GSS Architecture",148432,09/01/2014,10196134
INSERTED DETAIL,Sustainable Inclusive Communities,Woodside Park,TVR00,Development Activities,0450,1975.00,"Gotch, Saunders & Surridge LLP , t/a GSS Architecture",148432,16/01/2014,10196438
INSERTED DETAIL,Capital Program ,Pettiver Crescent,PCH00,Capital Contract Payments,5000,1599.37,"Gotch, Saunders & Surridge LLP , t/a GSS Architecture",148432,30/01/2014,10197116
INSERTED DETAIL,Resources & Corporate Governance,Housing Maintenance,WHM00,External Contractor & Operator,0742,4750.00,Garforth Scaffolding Ltd,148530,23/01/2014,10194949
INSERTED DETAIL,Resources & Corporate Governance,Housing Maintenance,WHM00,External Contractor & Operator,0742,4720.00,Garforth Scaffolding Ltd,148530,23/01/2014,10195974
INSERTED DETAIL,Capital Program ,Open Spaces Refurbishment,LEI08,Capital Contract Payments,5000,3220.00,Kova Landscape Ltd,148635,16/01/2014,10196404
INSERTED DETAIL,Capital Program ,Open Spaces Refurbishment,LEI08,Capital Contract Payments,5000,3024.00,Kova Landscape Ltd,148635,23/01/2014,10196931
INSERTED DETAIL,Capital Program ,Open Spaces Refurbishment,LEI08,Capital Contract Payments,5000,1350.00,Kova Landscape Ltd,148635,30/01/2014,10197174
INSERTED DETAIL,Resources & Corporate Governance ,Grounds Maintenance,WGM00,Tools,0304,1078.43,Radiodetection Limited,148837,02/01/2014,10195624
INSERTED DETAIL,Housing Revenue Account ,Gas Heating Systems,UMR01,R&M External Contractors,0100,866.92,Robert Heath Heating Ltd,148858,16/01/2014,10196302
INSERTED DETAIL,Sustainable Inclusive Communities,Woodside Park,TVR00,R&M External Contractors,0100,40.00,Robert Heath Heating Ltd,148858,23/01/2014,10196454
INSERTED DETAIL,Housing Revenue Account ,Unplanned Maintenance and Repair,UMR00,R&M External Contractors,0100,835.81,Robert Heath Heating Ltd,148858,23/01/2014,10196454
INSERTED DETAIL,Housing Revenue Account ,Gas Heating Systems,UMR01,R&M External Contractors,0100,473.65,Robert Heath Heating Ltd,148858,23/01/2014,10196454
INSERTED DETAIL,Housing Revenue Account ,Repairs and Maintenance - Void works,UMR09,R&M External Contractors,0100,677.76,Robert Heath Heating Ltd,148858,23/01/2014,10196454
INSERTED DETAIL,Housing Revenue Account ,Supervision and Management General,MAN00,Other Miscellaneous Expenses,0444,63.03,Robert Heath Heating Ltd,148858,23/01/2014,10196454
INSERTED DETAIL,Housing Revenue Account ,Gas Heating Systems,UMR01,R&M External Contractors,0100,24240.00,Robert Heath Heating Ltd,148858,23/01/2014,10196681
INSERTED DETAIL,Resources & Corporate Governance,Central Business Support Services,CSS15,Photocopying,0354,9456.68,Xerox Finance Ltd,148940,02/01/2014,10195539
INSERTED DETAIL,Capital Program ,Heating Upgrades,HIM01,Capital Contract Payments,5000,600.00,Capita Property & Infrastructure Ltd,148946,09/01/2014,10196126
INSERTED DETAIL,Economy Development & Culture,The Benn Hall,BHL00,Purchases for Resale,0305,2363.59,Matthew Clark Wholesale Ltd,148975,09/01/2014,10196102
INSERTED DETAIL,Economy Development & Culture,The Benn Hall,BHL00,Purchases for Resale,0305,1225.96,Matthew Clark Wholesale Ltd,148975,30/01/2014,10197200
INSERTED DETAIL,Resources & Corporate Governance,Housing Maintenance,WHM00,External Contractor & Operator,0742,526.00,PJR Services,149062,16/01/2014,10196534
INSERTED DETAIL,Resources & Corporate Governance,Housing Maintenance,WHM00,External Contractor & Operator,0742,509.00,PJR Services,149062,23/01/2014,10196822
INSERTED DETAIL,Resources & Corporate Governance,Housing Maintenance,WHM00,External Contractor & Operator,0742,526.00,PJR Services,149062,30/01/2014,10197102
INSERTED DETAIL,Housing Revenue Account ,Unplanned Maintenance and Repair,UMR00,R&M External Contractors,0100,80.00,Elite Surveyors Ltd,149107,16/01/2014,10195575
INSERTED DETAIL,Housing Revenue Account ,Repairs and Maintenance - Void works,UMR09,R&M External Contractors,0100,1080.00,Elite Surveyors Ltd,149107,16/01/2014,10195575
INSERTED DETAIL,Housing Revenue Account ,Repairs and Maintenance - Void works,UMR09,R&M External Contractors,0100,698.00,Elite Surveyors Ltd,149107,16/01/2014,10196452
INSERTED DETAIL,Resources & Corporate Governance ,Support Services,CIS20,Subscriptions,0421,1000.00,ICOMM Technologies Ltd,149115,16/01/2014,10194148
INSERTED DETAIL,Housing Revenue Account ,Unplanned Maintenance and Repair,UMR00,R&M External Contractors,0100,565.00,Superclean Services Wothorpe,149153,16/01/2014,10196038
INSERTED DETAIL,Housing Revenue Account ,Repairs and Maintenance - Void works,UMR09,R&M External Contractors,0100,2220.00,Superclean Services Wothorpe,149153,16/01/2014,10196038
INSERTED DETAIL,Housing Revenue Account ,Unplanned Maintenance and Repair,UMR00,R&M External Contractors,0100,305.00,Superclean Services Wothorpe,149153,16/01/2014,10196039
INSERTED DETAIL,Housing Revenue Account ,Repairs and Maintenance - Void works,UMR09,R&M External Contractors,0100,1135.00,Superclean Services Wothorpe,149153,16/01/2014,10196039
INSERTED DETAIL,Housing Revenue Account ,Unplanned Maintenance and Repair,UMR00,R&M External Contractors,0100,235.00,Superclean Services Wothorpe,149153,16/01/2014,10196040
INSERTED DETAIL,Housing Revenue Account ,Repairs and Maintenance - Void works,UMR09,R&M External Contractors,0100,1135.00,Superclean Services Wothorpe,149153,16/01/2014,10196040
INSERTED DETAIL,Housing Revenue Account ,Unplanned Maintenance and Repair,UMR00,R&M External Contractors,0100,137.25,Superclean Services Wothorpe,149153,16/01/2014,10196042
INSERTED DETAIL,Housing Revenue Account ,Repairs and Maintenance - Void works,UMR09,R&M External Contractors,0100,3650.00,Superclean Services Wothorpe,149153,16/01/2014,10196042
INSERTED DETAIL,Housing Revenue Account ,Unplanned Maintenance and Repair,UMR00,R&M External Contractors,0100,261.00,Superclean Services Wothorpe,149153,23/01/2014,10196780
INSERTED DETAIL,Housing Revenue Account ,Repairs and Maintenance - Void works,UMR09,R&M External Contractors,0100,2090.00,Superclean Services Wothorpe,149153,23/01/2014,10196780
INSERTED DETAIL,Housing Revenue Account ,Supervision and Management General,MAN00,Other Miscellaneous Expenses,0444,600.00,REDACTED PERSONAL DATA,REDACTED,09/01/2014,10196210
INSERTED DETAIL,Resources & Corporate Governance,Housing Maintenance,WHM00,Vehicle Repair and Maintenance,0200,925.00,Eyden Locksmiths Ltd,149185,16/01/2014,10190401
INSERTED DETAIL,Economy Development & Culture,Planning General/Income,PLN00,External Legal Costs,0741,1000.00,Iqbal Mohammed,149236,23/01/2014,10195841
INSERTED DETAIL,Capital Program ,Open Spaces Refurbishment,LEI08,External Contractor & Operator,0742,660.00,Sustainable Furniture (UK) Ltd,149243,23/01/2014,10196870
INSERTED DETAIL,Economy Development & Culture,The Benn Hall,BHL00,Special Events/Activities,0447,2325.00,Neville Staple Band,149246,23/01/2014,10196934
INSERTED DETAIL,Economy Development & Culture,The Benn Hall,BHL00,Special Events/Activities,0447,700.00,Gag Reflex Ltd,149264,02/01/2014,10195990
INSERTED DETAIL,Economy Development & Culture,The Benn Hall,BHL00,Special Events/Activities,0447,700.00,Gag Reflex Ltd,149264,23/01/2014,10196933
INSERTED DETAIL,Capital Program ,Crematorium Project,BUR04,IT Capital Expenditure,5025,1937.34,Tangible Benefit,149276,23/01/2014,10195588
INSERTED DETAIL,Resources & Corporate Governance ,General Administration,WAD00,Training fees,0011,850.00,Associated Transport Tuition,149284,16/01/2014,10196405
INSERTED DETAIL,Resources & Corporate Governance ,Garage Internal,WVR01,Materials,0303,551.18,Grenke Leasing Ltd,149293,09/01/2014,10196020
INSERTED DETAIL,Resources & Corporate Governance ,Garage Internal,WVR01,Materials,0303,1127.85,Grenke Leasing Ltd,149293,09/01/2014,10196207
INSERTED DETAIL,Resources & Corporate Governance ,TREE WORKS,WGM01,Contract Hire,0220,660.00,Facelift GB Ltd,149303,30/01/2014,10197000
INSERTED DETAIL,Resources & Corporate Governance ,Highways,WHG00,External Contractor & Operator,0742,596.50,Walter Tipper Ltd,149365,16/01/2014,10196556
INSERTED DETAIL,Economy Development & Culture,The Benn Hall,BHL00,Events Tickets - Standard Rated,1404,4214.70,Cecil Benjamin,149392,16/01/2014,10196334
INSERTED DETAIL,Resources & Corporate Governance,Housing Maintenance,WHM00,External Contractor & Operator,0742,1243.98,CSC Forecourt Services Ltd,149405,09/01/2014,10195567
INSERTED DETAIL,Capital Program ,Disabled Adaptations,HCR01,Capital Contract Payments,5000,1864.09,Close Circuit Security Services Ltd,149426,16/01/2014,10196123
INSERTED DETAIL,Capital Program ,Vehicle Workshop Extension,VWE00,Capital Contract Payments,5000,26285.00,Stertil UK Limited,149430,30/01/2014,10196983
INSERTED DETAIL,Economy Development & Culture,Street Furniture,HIG01,External Contractor & Operator,0742,575.76,Bike Dock Soplutions Ltd,149453,23/01/2014,10196675
INSERTED DETAIL,Economy Development & Culture,The Benn Hall,BHL00,Other Consumables,0351,971.80,BPS Innovative Media Ltd,149463,23/01/2014,10196907
INSERTED DETAIL,Resources & Corporate Governance,Housing Maintenance,WHM00,Vehicle Repair and Maintenance,0200,444.15,CLB Cleanequip Ltd,149464,23/01/2014,10196902
INSERTED DETAIL,Sustainable Environment ,Cemeteries General,CEM00,External Contractor & Operator,0742,1500.00,UK Architectural Antiques,149469,09/01/2014,10196215
INSERTED DETAIL,Capital Program ,Queen's Diamond Jubilee Leisure Centre Project,LEI03,Capital Contract Payments,5000,1699.50,GDF Suez Marketing Ltd,149473,09/01/2014,10196052
INSERTED DETAIL,Sustainable Environment ,Parks,PKS00,External Contractor & Operator,0742,937.50,Kev Munday,149487,16/01/2014,10196477
INSERTED DETAIL,Housing Revenue Account ,Supervision and Management General,MAN00,Training fees,0011,575.00,NEF Consulting,149521,30/01/2014,10197108
detail,,Balance Sheet,BS,Car Loan Scheme,9261,1800.00,Graylands Ltd,149528,29/01/2014,10197199
,,Balance Sheet,BS,Cov & Warks Pooling Fund,9476,1051510.00,Cov & Warks Pooling Fund,,17/01/2014,30317
,,Balance Sheet,BS,Business Rate Retention Scheme payment,9476,1613974.00,CLG,,20/01/2014,30335
,,Balance Sheet,BS,Business Rate Retention Scheme payment,9476,323552.00,WCC County Fund,,20/01/2014,30334
,Sustainable Enironment,Caldecott Park Caf� & Benn Hall,WGM02,Purchases for Resale,0303,718.17,Booker Ltd,,07/01/2014,30220
,,Balance Sheet,BS,Refund,9256,1376.10,Mr Anthony webb,,27/01/2014,30400
,,Balance Sheet,BS,Refund,9256,1109.00,Mrs R Sitford,,28/01/2014,30468
,,Balance Sheet,BS,Q3 13/14 Housing Pooling Payment,9820,55698.36,Department for Communities & Local Govt,,31/01/2014,30469
